Cogmind - Beta 16.1 @@@ ROGUE MODE // 2026.04.22 @ 14:17:38 Player: shapeshifter Result: Escaped! Performance ------------- Evolutions (9) 4500 Regions Visited (30) 6000 Robots Destroyed (493) 2465 Value Destroyed (26928) 26928 Prototype IDs (163) 3260 Alien Tech Used (9) 1800 Bonus (29100) 29100 TOTAL SCORE: 74053 Bonus ------- Triggered High Security 1000 High Alert Combat Kills 8027 Follower Combat Kills 1048 Met Data Miner 300 Met Warlord at Base 500 MAIN.C Attacked Warlord 500 Warlord Defense Kills 3574 Met Warlord at Research 2000 Invited to Help at Command 2000 Scanned by Researcher 500 Destroyed MAIN.C Guards 500 Met MAIN.C 5000 Met Warlord at Command 2000 Met Architect 300 Win 3000 Friendly Fire -1149 Cogmind --------- Core Integrity 21/1600 Matter 32/300 Energy 540/1052 System Corruption 20% Temperature Cool (24) Movement Hovering (30) Location To Epsilon Eridani Parts ------- > --- POWER (3) -------- Antimatter-Quantum Reactor > --- PROPULSION (6) --- Hovering Antigrav-Surge Exoskeleton > --- UTILITY (12) ----- Scrap Engine Concept Phasing Heat Sink Concept Phasing Heat Sink Concept Phasing Heat Sink Concept Antigrav Storage Unit Concept Chromion Battery Mini Quantum Capacitor Advanced Weapon Cycler Concept Cloak Mesh Concept Beam Splitter > --- WEAPON (5) ------- Heavy Neutron Cannon Core Cannon Compact Tesla Bomb Launcher Laser Nova Construct/C > --- INVENTORY (25) --- Concept Chromion Battery (800) Experimental Matter Compressor (0) Concept NT7 Matterbank (750) Concept NT7 Matterbank (488) Concept Weapon Articulator Quantum Capacitor Concept Cloak Mesh AEGIS Remote Shield Advanced Recalibrator Crosscalibrator Graviton Cannon Vortex Lance (4) Peak State ------------ > --- POWER ------------ Antimatter-Quantum Reactor > --- PROPULSION ------- Hovering Antigrav-Surge Exoskeleton > --- UTILITY ---------- Armored Scrap Engine Concept Antigrav Storage Unit Concept Projectile Intercept Suite Concept Core Analysis Suite Concept Phase Shift Module Concept Cloak Mesh Concept Core Shell Centrium Medium Armor Plating Graphene Brace Experimental Remote Shield > --- WEAPON ----------- Laser Nova Construct/C Concept Deflector Sword Experimental Jetlance Experimental Jetlance > --- INVENTORY -------- Concept Phasing Heat Sink Advanced Coolant Injector Concept Chromion Battery Concept Chromion Battery Concept NT7 Matterbank Concept NT7 Matterbank Concept Weapon Articulator Concept Recoil Nullifier Nanoactuators Concept Cloak Mesh Concept Core Shell Concept Core Shell Concept Beam Splitter Concept Antimissile System Concept Matter Streamer Advanced Recalibrator Crosscalibrator High-powered Transdimensional Reconstructor High-powered Transdimensional Reconstructor Core Cannon Concept Arcsight Missile Launcher Vortex Lance Vortex Lance Experimental Jetlance [Rating: 278] Favorites ----------- Power Constructs Engine Ion Engine Power Core Nuclear Core Reactor Constructs Propulsion Constructs Treads Light Treads Wheel Compact Wheel Hover Unit Constructs Utility Armored Scrap Engine Device Armored Scrap Engine Storage High-capacity Storage Unit Processor Advanced Signal Interpreter Hackware Advanced Hacking Suite Protection Improved Medium Armor Plating Weapon Constructs Energy Gun Small Laser Energy Cannon Subdweller Beam Cannon Ballistic Gun Enhanced Autogun Ballistic Cannon Constructs Launcher Mini Smartbomb Launcher Special Weapon Improved Remote Datajack Impact Weapon Core Stripper Slashing Weapon Sigix Broadsword Piercing Weapon Experimental Jetlance Build | -11 -10 -10 -8 -8 -8 -6 -6 -6 -6 -5 -5 -5 -5 -5 -5 -5 -4 -4 -4 -4 -4 -3 -3 -3 -2 -2 -2 -1 -1 -1 ------- Run | Yrd Mat Sub Mat Sto Rec Fac Low Low Dat Pro Fac Was Fac Upp Upp War Pro Fac Upp Upp Zhi Pro Res Qua Res Tes Frg Acc Com Ac0 Slots Evolved 18 | . . . 4 . . 4 . . . . 2 . . . . . . 2 . . . . 2 . 2 . . 2 . . Power 2 | . . . . . . 1 . . . . . . . . . . . . . . . . . . 1 . . . . . Propulsion 4 | . . . 2 . . 1 . . . . . . . . . . . 1 . . . . . . . . . . . . Utility 9 | . . . 1 . . 2 . . . . 1 . . . . . . 1 . . . . 2 . 1 . . 1 . . Weapon 3 | . . . 1 . . . . . . . 1 . . . . . . . . . . . . . . . . 1 . . Parts Attached 238 | 7 . 14 20 15 2 5 4 2 . 2 9 3 6 . 2 6 1 5 5 . 5 . 4 4 13 14 59 14 15 2 Power 4 | 1 . . 2 1 . . . . . . . . . . . . . . . . . . . . . . . . . . Engine 3 | 1 . . 1 1 . . . . . . . . . . . . . . . . . . . . . . . . . . Core 1 | . . . 1 . . . . . . . . . . . . . . . . . . . . . . . . . . . Reactor . | . . . . . . . . . . . . . . . . . . . . . . . . . . . . . . . Propulsion 13 | 2 . 3 6 2 . . . . . . . . . . . . . . . . . . . . . . . . . . Treads 6 | 2 . 1 1 2 . . . . . . . . . . . . . . . . . . . . . . . . . . Leg . | . . . . . . . . . . . . . . . . . . . . . . . . . . . . . . . Wheel 7 | . . 2 5 . . . . . . . . . . . . . . . . . . . . . . . . . . . Hover . | . . . . . . . . . . . . . . . . . . . . . . . . . . . . . . . Flight . | . . . . . . . . . . . . . . . . . . . . . . . . . . . . . . . Utility 143 | 2 . 2 7 3 1 5 3 . . 1 6 3 3 . . 5 1 5 4 . 3 . 4 1 11 7 45 12 9 . Device 79 | 1 . . 1 1 1 2 3 . . . 2 1 1 . . 5 1 3 4 . . . . 1 8 4 26 8 6 . Storage 15 | 1 . 1 2 . . 1 . . . . 1 . 1 . . . . . . . 2 . . . . 2 3 . 1 . Processor 17 | . . . . . . . . . . . 2 1 . . . . . 1 . . . . 1 . 1 1 8 1 1 . Hackware 7 | . . . . 1 . . . . . . . . 1 . . . . . . . . . 3 . . . . 1 1 . Protection 25 | . . 1 4 1 . 2 . . . 1 1 1 . . . . . 1 . . 1 . . . 2 . 8 2 . . Artifact . | . . . . . . . . . . . . . . . . . . . . . . . . . . . . . . . Weapon 78 | 2 . 9 5 9 1 . 1 2 . 1 3 . 3 . 2 1 . . 1 . 2 . . 3 2 7 14 2 6 2 Energy Gun 8 | . . 2 . 2 . . . . . . . . . . 1 . . . . . . . . . . 1 2 . . . Energy Cannon 12 | . . 2 . . . . . . . . 2 . . . . . . . . . . . . . 1 3 1 1 1 1 Ballistic Gun 20 | 2 . 4 5 5 . . . . . . . . 2 . . . . . . . . . . . . . 2 . . . Ballistic Cannon 13 | . . 1 . 2 . . . . . . . . 1 . 1 . . . . . . . . . 1 . 2 1 4 . Launcher 13 | . . . . . 1 . 1 2 . 1 1 . . . . . . . 1 . 1 . . . . 2 1 . 1 1 Special Weapon 2 | . . . . . . . . . . . . . . . . 1 . . . . . . . 1 . . . . . . Impact Weapon 1 | . . . . . . . . . . . . . . . . . . . . . . . . . . 1 . . . . Slashing Weapon 2 | . . . . . . . . . . . . . . . . . . . . . . . . 1 . . 1 . . . Piercing Weapon 7 | . . . . . . . . . . . . . . . . . . . . . 1 . . 1 . . 5 . . . Special Melee Weapon . | . . . . . . . . . . . . . . . . . . . . . . . . . . . . . . . Unidentified Prototypes 62 | . . . 1 2 1 . 1 . . . 2 3 . . . 2 . . . . 5 . . 3 7 12 17 1 3 2 Parts Lost 92 | . . 4 15 2 1 6 1 . . 2 4 . . . . . . 2 2 . . . 5 6 1 3 19 9 9 1 Power 12 | . . . 2 1 1 2 . . . . 1 . . . . . . . . . . . . 2 . . 1 1 1 . Propulsion 5 | . . 2 2 1 . . . . . . . . . . . . . . . . . . . . . . . . . . Utility 48 | . . 2 3 . . 2 . . . 1 2 . . . . . . 1 2 . . . 4 2 1 2 14 6 5 1 Weapon 26 | . . . 8 . . 2 1 . . 1 1 . . . . . . 1 . . . . 1 2 . . 4 2 3 . Highest Loss Streak 7 | . . 1 5 1 1 2 1 . . 1 2 . . . . . . 1 2 . . . 2 3 1 2 4 7 7 1 To Critical Strikes 1 | . . . . . . . . . . . . . . . . . . . . . . . . . . 1 . . . . Average Backups 14 | 2 3 5 16 22 14 12 8 13 14 13 14 15 15 13 13 17 17 17 18 18 19 18 17 17 16 16 20 21 18 12 Power . | . 1 . 2 . . . . . . . . . . . . . . . . . . . . . . . . . . . Propulsion 1 | . . 1 8 10 4 . . . . . . . . . . . . . . . . . . . . . . . . . Utility 7 | . 1 1 2 2 4 10 5 10 10 10 10 10 11 11 11 12 11 12 13 14 14 12 11 8 7 8 13 14 13 10 Weapon 3 | . 1 2 3 8 4 1 2 3 4 2 3 4 3 2 2 4 5 5 4 4 4 4 4 5 5 5 4 4 2 1 Tool/Special . | . . . . . . . . . . . . . . . . . . . . . . . . . . . . . . . Unused Backups 115 | . . 5 12 6 17 13 . 1 . . 3 1 3 . 3 2 1 . . 1 2 1 . 2 3 3 28 . 4 4 Power 4 | . . 1 3 . . . . . . . . . . . . . . . . . . . . . . . . . . . Propulsion 23 | . . . 4 1 13 . . . . . . . . . . . . . . . . . . . . 1 4 . . . Utility 55 | . . 1 3 4 . 10 . 1 . . 2 1 3 . . 2 . . . 1 2 1 . 1 1 1 15 . 2 4 Weapon 30 | . . 3 1 . 4 3 . . . . 1 . . . 3 . 1 . . . . . . 1 2 1 8 . 2 . Tool/Special 3 | . . . 1 1 . . . . . . . . . . . . . . . . . . . . . . 1 . . . Average Slot Usage (%) 63 | . 100 81 78 97 57 39 44 44 43 48 53 52 55 55 55 55 54 53 52 50 50 55 53 48 55 57 60 56 54 55 Engine 4 | . 14 14 2 8 6 4 6 4 . . . . . . . . . . . . . . . . . . . . . . Core 1 | . . . 4 . 1 . . . . . . . . . . 1 5 3 1 2 5 5 1 . . 1 . . . . Reactor 1 | . . . . . . . . 1 6 6 4 4 4 5 5 3 . 1 3 2 . . 2 2 2 2 3 3 3 3 Treads 5 | . 28 20 5 13 6 . . . . . . . . . . . . . . . . . . . . . . . . . Leg 1 | . . . . . . 1 2 3 . 4 3 3 . . . 3 5 1 . . . . . 2 . 1 1 . . . Wheel 4 | . . 6 24 21 6 3 . . . . . . . . . . . . . . . . . . . . . . . . Flight 1 | . . . . . 2 . 3 . . . 1 1 . . . . . 3 5 5 3 . . . 2 1 . . . . Device 11 | . 14 . 1 3 6 10 8 12 12 12 15 11 11 11 11 11 13 15 15 15 15 19 18 18 25 24 21 28 31 34 Storage 5 | . 14 4 8 9 9 5 5 6 6 6 5 5 5 5 5 5 5 5 5 5 5 5 4 4 4 4 4 3 3 3 Processor 4 | . . . . . . . . . . . 6 11 11 11 11 11 7 7 5 5 5 5 4 9 8 12 8 . 2 . Hackware 1 | . . . . 7 2 . . . . . . . 4 5 5 5 5 5 5 5 5 5 10 5 2 . . 1 1 . Protection 3 | . . 6 6 6 2 1 5 6 6 5 2 4 . . . . . . 4 5 4 . . . . . 4 4 . . Energy Cannon 1 | . . 5 . . . . . . . . 2 1 . . . . 5 3 2 . . . . . . 2 1 2 1 3 Ballistic Gun 6 | . 28 14 19 24 7 . 4 . 6 3 5 1 1 3 . . . . . . . . . . 1 . . . . . Ballistic Cannon 3 | . . 5 . 2 4 6 1 . . . . 3 5 5 5 4 . 1 2 5 5 5 4 2 1 . 1 1 2 4 Launcher 1 | . . . . . . 2 . . . 6 2 1 3 2 5 5 5 4 2 . . 5 1 . . . . 1 . . Peak Build Rating 278 | 7 7 23 30 35 46 69 74 79 72 80 97 113 118 117 119 130 131 138 133 132 144 140 161 153 212 222 278 269 246 252 Average Rating 101 | 5 7 11 24 32 38 53 67 71 72 74 81 91 110 111 112 125 128 130 126 122 127 138 145 137 186 211 239 241 217 225 On Entrance 106 | . 7 7 23 19 34 41 65 70 72 72 78 82 108 110 111 112 128 130 124 121 126 134 140 149 125 203 217 237 223 246 Avg Prop Armor Cover (%) 8 | . . 2 11 10 11 . . . . . . . . . . . . . . . . . . . . . . . . . Naked Turns . | . . . . . . . . . . . . . . . . . . . . . . . . . . . . . . . Heaviest Build 219 | 14 14 211 219 104 104 134 77 88 72 72 68 68 91 84 82 95 74 79 99 89 93 93 105 92 151 139 152 130 112 113 Greatest Support 263 | 40 40 40 64 48 80 85 85 82 82 82 77 133 133 83 83 158 158 158 124 124 96 96 96 165 231 263 263 172 166 166 Greatest Overweight (x) 28 | . . 10 13 3 28 1 1 1 . . 1 1 1 1 . . . . . . . . 1 . 1 . 1 . 1 . Average Overweight (x) . | . . 1 3 2 2 . . . . . . . . . . . . . . . . . . . . . . . . . Largest Inventory Capacity 35 | 8 8 35 35 25 25 25 15 15 15 15 15 15 20 15 15 20 20 20 20 20 20 20 20 20 20 20 25 25 25 25 Average Capacity 19 | 7 8 13 29 25 25 23 13 15 15 15 15 15 15 15 15 18 20 20 20 20 20 20 20 20 20 20 23 25 25 25 Most Carried 34 | 5 3 20 34 25 25 18 15 15 15 15 15 15 16 14 15 20 20 20 20 20 20 20 20 20 20 20 25 25 24 17 Average Carried 16 | 2 3 7 21 24 15 12 8 14 15 14 14 14 15 13 13 17 18 18 19 19 19 19 19 19 19 19 22 22 20 14 Final Capacity 35 | 8 8 35 25 25 25 15 15 15 15 15 15 15 15 15 15 20 20 20 20 20 20 20 20 20 20 20 25 25 25 25 Final Carried 25 | 3 3 20 21 25 14 3 15 15 15 15 15 15 14 13 13 20 17 20 20 20 20 20 18 20 20 20 25 21 19 13 Scrap Engine Consumption 526 | . . . . . 65 32 15 5 . 8 18 30 18 3 3 32 3 17 7 5 5 4 11 9 58 31 106 14 24 3 Constructs Created 14 | . . . . . 3 4 1 . . 1 . . . . . . . . . . . . . . 3 . 1 . . 1 Constructs Modified 230 | . . . . . 26 5 10 3 . 2 7 14 10 1 1 16 . 4 10 3 1 2 4 4 23 19 44 6 13 2 Class Distribution -------------------- 43% | Construct 12% | Mutant 9% | Scavenger-Construct 7% | Hauler-Mutant 5% | Subdweller-Mutant 4% | Tank 3% | Commander-Tank 3% | Hauler-Tank Dominant Class ---------------- Mutant | -10/Materials Mutant | -10/Subcaves Hauler-Tank | -8/Materials Commander-Tank | -8/Storage Construct | -8/Recycling Construct | -6/Factory Construct | -6/Lower Caves Construct | -6/Lower Caves Construct | -6/Data Miner Construct | -5/Proximity Caves Construct | -5/Factory Construct | -5/Waste Construct | -5/Factory Construct | -5/Upper Caves Construct | -5/Upper Caves Construct | -5/Warlord Construct | -4/Proximity Caves Construct | -4/Factory Construct | -4/Upper Caves Construct | -4/Upper Caves Construct | -4/Zhirov Construct | -3/Proximity Caves Hacker-Construct | -3/Research Mutant | -3/Quarantine Scavenger-Construct | -2/Research Scavenger-Construct | -2/Testing Scavenger-Construct | -2/Protoforge Infiltrator-Mutant | -1/Access Infiltrator-Mutant | -1/Command Sprinter | -1/Access_0 Resources | -11 -10 -10 -8 -8 -8 -6 -6 -6 -6 -5 -5 -5 -5 -5 -5 -5 -4 -4 -4 -4 -4 -3 -3 -3 -2 -2 -2 -1 -1 -1 ----------- Run | Yrd Mat Sub Mat Sto Rec Fac Low Low Dat Pro Fac Was Fac Upp Upp War Pro Fac Upp Upp Zhi Pro Res Qua Res Tes Frg Acc Com Ac0 Matter Collected 20341 | 246 . 623 1069 952 556 438 280 109 . 221 248 891 509 350 212 1559 201 955 1081 383 311 201 664 240 839 278 6050 552 323 . Remotely 137 | . . . . . . . . . . . . . . . . . . . 83 . . . . . . . 54 . . . Salvage Created 20606 | 12 . 794 1544 986 186 702 606 206 . 503 517 796 810 337 314 941 213 1283 671 342 302 53 463 277 363 422 5739 903 321 . Parts 911 | 5 . 60 75 57 10 44 29 13 . 21 28 5 32 18 12 36 11 85 11 18 3 3 19 6 17 7 229 42 15 . Haulers Intercepted 12 | . . . 5 3 . 1 . . . . 2 . . . . . . . . . . . . . . . . 1 . . Recyclers Shooed 7 | 1 . . 4 . . . . . . . . . 1 . . . . . . . . . . . . 1 . . . . Parts Field Recycled . | . . . . . . . . . . . . . . . . . . . . . . . . . . . . . . . Retrieved Matter . | . . . . . . . . . . . . . . . . . . . . . . . . . . . . . . . Parts Self-Destructed 109 | . . 22 . . . . 11 3 . 13 . . . 15 10 . 9 . 5 15 1 5 . . . . . . . . Prevented 4 | . . . . . . . 3 . . . . . . . . . . . 1 . . . . . . . . . . . Parts Restored 6 | . . . . . . . . . . . . . . . . . . . . . . . . . . . 4 2 . . Faulty 6 | . . . . . . . . . . . . . . . . . . . . . . . . . . . 4 2 . . Kills | -11 -10 -10 -8 -8 -8 -6 -6 -6 -6 -5 -5 -5 -5 -5 -5 -5 -4 -4 -4 -4 -4 -3 -3 -3 -2 -2 -2 -1 -1 -1 ------- Run | Yrd Mat Sub Mat Sto Rec Fac Low Low Dat Pro Fac Was Fac Upp Upp War Pro Fac Upp Upp Zhi Pro Res Qua Res Tes Frg Acc Com Ac0 Combat Hostiles Destroyed 403 | . . 22 20 16 4 8 11 4 . 14 12 . 15 11 12 31 6 32 16 15 . 1 12 3 6 4 102 18 8 . Melee 15 | . . . . . . . . . . . . . . . . . . . . . . . . . 2 1 12 . . . Guns 76 | . . 15 18 11 4 . 9 1 . 3 2 . . . . . . . . . . . . . 1 . 11 . 1 . Cannons 127 | . . 6 . 5 . 7 1 . . . . . 10 1 5 2 3 20 4 4 . 1 5 . 1 1 44 4 3 . AOE 171 | . . . 2 . . 1 1 3 . 11 10 . 5 10 7 29 3 12 10 11 . . 7 3 2 1 25 14 4 . Classes Destroyed 34 | 1 . 4 6 2 . 1 3 . . . 1 . . . . 3 1 2 1 . . . . . 1 1 7 . . . Worker 21 | . . . 3 2 . 4 . . . . 1 . 1 . . . . 1 . . . . . . . . 3 6 . . Builder 12 | . . . 1 . . 2 . . . . 1 . . . . . . 4 . . . . . . 1 . 1 2 . . Tunneler 2 | 1 . . . . . . . . . . . . 1 . . . . . . . . . . . . . . . . . Hauler 12 | . . . 5 3 . 1 . . . . 2 . . . . . . . . . . . . . . . . 1 . . Recycler 7 | . . . 5 . . 1 . . . . . . . . . . . . . . . . . 1 . . . . . . Minesweeper 1 | . . . . . . . 1 . . . . . . . . . . . . . . . . . . . . . . . Mechanic 3 | . . . . . . . . . . . 1 . . . . . . . . . . . . . . . 2 . . . Operator 10 | . . . . 1 . . . . . . . . 1 . . . . 2 . . . . 1 . 1 . . 2 2 . Drone 13 | . . . . . . . . . . . . . . . . . 2 . . . . . . . . . 11 . . . Watcher 12 | . . . 2 2 . . . . . . 1 . 1 . . . . 1 . . . . 1 . . . 1 3 . . Swarmer 84 | . . 7 . . . 4 6 . . 7 9 . . 5 5 2 . 9 5 11 . . 3 . . . . 11 . . Cutter 6 | . . . . . . . . . . . . . . . . . . 6 . . . . . . . . . . . . Saboteur 3 | . . . . . . . . . . . . . . . . . . . . . . . . . . . 3 . . . Grunt 128 | . . 2 13 5 . . 4 4 . 3 . . 13 5 5 19 . 4 8 3 . . 5 2 2 . 25 2 4 . Brawler 9 | . . . . . . . . . . . . . . . . 1 . . 1 . . . . . . . 7 . . . Duelist 3 | . . . . . . . . . . . . . . . . . . . . . . . . . . . 3 . . . Protector 4 | . . . . 1 . . . . . . . . . . . 1 . . . . . . . . . . 2 . . . Researcher 11 | . . . . . . . 1 . . . . . . . . . . . . . . . . 2 . 2 6 . . . Sentry 43 | . . 1 6 9 1 1 1 . . 1 1 . 1 1 2 . . 4 2 1 . . . . . . 10 . 1 . Demolisher 1 | . . . . . . . . . . . . . . . . . . . . . . . . . 1 . . . . . Specialist 3 | . . . . . . . . . . . . . . . . 1 . 2 . . . . . . . . . . . . Hunter 26 | . . . 1 1 . 2 . . . 3 2 . . . . 3 4 2 . . . . . . 1 . 4 3 . . Programmer 31 | . . . . . . 1 . . . . . . 1 . . 3 . 3 . . . 1 3 1 2 3 10 2 1 . Heavy 3 | . . . . . . . . . . . . . . . . . . 2 . . . . 1 . . . . . . . Q-Series 3 | . . . . . . . . . . . . . . . . . . . . . . . . . . . 3 . . . Behemoth 1 | . . . . . . . . . . . . . . . . . . . . . . . . . . . 1 . . . M Guard 1 | . . . . . . . . . . . . . . . . . . . . . . . . . . . . . 1 . Hotshot 4 | . . . . . . . . . . . . . . . . . . . . . . . . . . . 4 . . . Decapitator 3 | . . . . . . . . . . . . . . . . . . . . . . . . . . . 3 . . . Immortal 7 | . . . . . . . . . . . . . . . . . . . . . . . . . . . 7 . . . Executioner 1 | . . . . . . . . . . . . . . . . 1 . . . . . . . . . . . . . . Alpha 7 2 | . . . . . . . . . . . . . . . . . . . . . . . . . . . 2 . . . Fortress 1 | . . . . . . . . . . . . . . . . . . . . . . . . . . 1 . . . . V-Series 7 | . . . . . . . . . . . . . . . . . . . . . . . . . . . 7 . . . Subdweller 15 | . . 12 . . 3 . . . . . . . . . . . . . . . . . . . . . . . . . Packrat 1 | . . . . . . . . . . 1 . . . . . . . . . . . . . . . . . . . . Samaritan 3 | . . . . . . . 1 2 . . . . . . . . . . . . . . . . . . . . . . Tinkerer 1 | . . . . . . . . . . . . . . . . . . . . . . . . . . . 1 . . . Thug 2 | . . . . . . . . . . . . . . . . . . . 2 . . . . . . . . . . . Mutant 1 | . . . . . . . . . . . . . . . . . . . 1 . . . . . . . . . . . Commander 1 | . . . . . . . . . . . . . . . . . . . . . . . . . . . . . 1 . Best Kill Streak 15 | 1 . 4 5 6 2 6 7 4 . 5 7 . 7 4 12 8 3 11 7 5 . 1 8 6 4 3 15 11 5 . Combat Bots Only 15 | . . 4 3 5 2 4 7 4 . 5 5 . 5 4 12 8 3 9 7 5 . 1 8 3 3 1 15 6 5 . Max Kills in Single Turn 6 | 1 . 2 3 1 2 3 1 1 . 4 4 . 3 4 3 5 2 3 3 4 . 1 3 6 3 3 3 6 1 . Gunslinging 1 | . . . . . 1 . . . . . . . . . . . . . . . . . . . . . . . . . Exploded 5 | . . . 2 . . 1 1 1 . 4 3 . 2 4 3 5 2 3 3 4 . . 3 3 2 1 3 5 1 . Melee 1 | . . . . . . . . . . . . . . . . . . . . . . . . . 1 1 1 . . . Uniques/NPCs Destroyed . | . . . . . . . . . . . . . . . . . . . . . . . . . . . . . . . Combat | -11 -10 -10 -8 -8 -8 -6 -6 -6 -6 -5 -5 -5 -5 -5 -5 -5 -4 -4 -4 -4 -4 -3 -3 -3 -2 -2 -2 -1 -1 -1 -------- Run | Yrd Mat Sub Mat Sto Rec Fac Low Low Dat Pro Fac Was Fac Upp Upp War Pro Fac Upp Upp Zhi Pro Res Qua Res Tes Frg Acc Com Ac0 Hostile Shots Fired 2816 | . . 111 174 38 13 196 71 24 . 68 94 . 32 4 73 55 46 159 44 33 . 7 103 169 118 110 612 140 189 133 Missed 1084 | . . 32 60 7 7 46 17 7 . 17 31 . 7 2 24 20 21 64 12 14 . 3 47 77 71 69 217 62 75 75 Intercepted 30 | . . . . . . . . . . . . . . . . . . . . . . . . . . . 30 . . . Deflected 8 | . . . . . . . . . . . . . . . . . . . . . . . . . . . 8 . . . Hits 1732 | . . 79 114 31 6 150 54 17 . 51 63 . 25 2 49 35 25 95 32 19 . 4 56 92 47 41 395 78 114 58 Melee 67 | . . . . . . . . . . . . . . . . . . 7 . . . . . 2 1 . 52 . . 5 Projectile 1665 | . . 79 114 31 6 150 54 17 . 51 63 . 25 2 49 35 25 88 32 19 . 4 56 90 46 41 343 78 114 53 AOE 31 | . . . . . . . . . . . . . . . . . . 5 . . . . . . 8 . 6 . 12 . Critical Strikes 126 | . . 2 7 1 . 4 1 1 . 1 2 . 3 . 1 2 1 8 2 . . . 5 4 5 1 59 3 8 5 Actively Blocked 69 | . . . 1 . . . . . . . . . . . . . . 5 . . . . 5 4 4 . 49 1 . . Part Disruptions 7 | . . . . . . . . . . . . . . . . . . 2 . . . . . . . . . . 5 . Damage Taken 37971 | . . 1279 1978 484 162 2308 657 305 . 741 1129 . 690 47 1013 630 243 1548 737 344 . 102 1418 2295 1382 1240 9833 2509 3623 1274 Core 4149 | . . 167 273 44 . 377 66 60 . 29 107 . 100 . 48 104 31 258 . 18 . . 24 128 198 44 996 75 779 223 Absorbed by Shields 3232 | . . . . . . . . . . . . . . . . 28 171 718 . . . . . . 239 . 1602 . 328 146 Redirected to Shielding 900 | . . . 11 . . . . . . . . . . . . . . . . . . . . . . . 487 402 . . Ignored by Resistances 3279 | . . . . . . 238 248 69 . 186 . . . . . . . . . . . . . . . . 1060 258 726 494 Regen/Repaired (Parts) 16776 | . . . . . 10 501 191 36 . . 495 409 154 59 135 1521 11 636 492 475 100 91 273 626 2016 750 5564 305 1814 112 Core Remaining (%) 47 | 100 . 33 . . 42 . . . . 37 . . . . . . 61 . . . . 76 . 69 . . 9 . . 1 Volleys Fired 1404 | 3 . 136 101 68 16 58 45 34 . 42 70 23 32 8 22 45 19 95 37 20 9 9 53 8 31 9 299 44 64 4 Largest 3 | 2 . 2 3 3 3 2 2 2 . 3 3 2 2 1 1 1 1 1 1 1 1 1 1 1 2 1 2 2 2 1 Hottest 300 | 40 . 120 98 99 75 108 92 86 . 124 221 130 103 80 80 112 112 112 112 112 112 112 112 83 98 55 300 82 300 300 Shots Fired 1913 | 6 . 269 260 203 46 62 66 35 . 45 76 24 35 8 22 45 19 95 37 20 9 9 53 8 32 9 302 47 67 4 Gun 961 | 6 . 193 254 181 45 4 60 30 . 34 38 . 3 . . . . . . . . . . . 22 . 65 12 14 . Cannon 802 | . . 76 6 22 . 58 6 . . . 31 23 28 3 15 6 16 87 29 14 9 9 47 7 7 8 213 29 49 4 Launcher 150 | . . . . . 1 . . 5 . 11 7 1 4 5 7 39 3 8 8 6 . . 6 1 3 1 24 6 4 . Special . | . . . . . . . . . . . . . . . . . . . . . . . . . . . . . . . Kinetic 1308 | 6 . 184 226 203 45 62 45 . . 34 38 23 31 3 15 6 16 87 14 14 9 9 47 7 29 . 87 29 39 . Thermal 417 | . . 85 34 . . . 21 30 . . 31 . . . . . . . . . . . . . . 8 168 12 24 4 Explosive 145 | . . . . . 1 . . 5 . 11 7 1 4 5 7 39 3 8 8 6 . . 6 . . . 24 6 4 . Electromagnetic 38 | . . . . . . . . . . . . . . . . . . . 15 . . . . . . . 23 . . . Entropic 5 | . . . . . . . . . . . . . . . . . . . . . . . . 1 3 1 . . . . Robot Hit Streak 28 | 3 . 19 11 13 10 7 9 12 . 4 17 8 12 1 11 14 5 12 16 8 3 5 8 4 8 5 28 14 26 8 Robot Miss Streak 8 | 2 . 4 7 6 3 8 5 2 . 2 3 1 1 1 1 1 5 7 2 2 1 2 4 . 6 1 3 2 1 1 Penetration Max 2 | . . . . . . 1 1 . . . . 1 1 . . 1 1 1 . . 1 . . . 1 . 2 2 1 . Secondary Targets 10 | . . 3 3 1 1 . 2 . . . . . . . . . . . . . . . . . . . . . . . Max Gunslinging Chain 1 | . . 1 1 1 1 . 1 . . . . . . . . . . . . . . . . . . . . . . . Capacitor 18 | . . . . . . . . . . . . . . . . . . . . . . . . . . . 1 12 3 2 Shots Hit Robots 1224 | 3 . 116 165 105 33 45 41 14 . 24 34 20 18 2 15 16 11 55 25 9 5 5 29 1 24 13 311 36 48 1 Core Hits 948 | 1 . 42 77 60 10 42 27 13 . 23 29 3 28 15 23 106 11 53 34 21 3 2 27 8 14 8 199 41 27 1 Critical Kills 18 | . . 2 . . . . . 1 . . . . 5 . 1 . 1 4 . . . . . . 1 . 2 . 1 . Critical Parts Destroyed 15 | . . . 1 1 . . 1 . . . . . . . . . . 2 . . . . 1 . 1 . . 1 7 . Critical Strikes 73 | . . 4 1 1 . . 1 1 . . . 9 5 . 1 . 1 6 1 . . . 1 . 3 . 21 1 16 . Meltdown 3 | . . 1 . . . . . . . . . . . . . . . . . . . . . . . . 2 . . . Destroy 48 | . . 2 1 1 . . 1 1 . . . 9 5 . 1 . 1 6 1 . . . 1 . 2 . . 1 15 . Blast 2 | . . 1 . . . . . . . . . . . . . . . . . . . . . . . . . . 1 . Corrupt 2 | . . . . . . . . . . . . . . . . . . . . . . . . . . . 2 . . . Sever 1 | . . . . . . . . . . . . . . . . . . . . . . . . . 1 . . . . . Impale 9 | . . . . . . . . . . . . . . . . . . . . . . . . . . . 9 . . . Sunder 8 | . . . . . . . . . . . . . . . . . . . . . . . . . . . 8 . . . Melee Attacks 159 | . . . . . . . . . . . . . . . . . . . . . . . . 5 22 15 109 3 5 . Kinetic 14 | . . . . . . . . . . . . . . . . . . . . . . . . . . 2 12 . . . Impact . | . . . . . . . . . . . . . . . . . . . . . . . . . . . . . . . Slashing 56 | . . . . . . . . . . . . . . . . . . . . . . . . 3 22 12 19 . . . Piercing 29 | . . . . . . . . . . . . . . . . . . . . . . . . . . . 29 . . . Entropic 60 | . . . . . . . . . . . . . . . . . . . . . . . . 2 . 1 49 3 5 . Sneak Attacks 8 | . . . . . . . . . . . . . . . . . . . . . . . . . 1 . 7 . . . Combat Hostiles . | . . . . . . . . . . . . . . . . . . . . . . . . . . . . . . . Follow-up Attacks 9 | . . . . . . . . . . . . . . . . . . . . . . . . . . . 9 . . . Damage Inflicted 92365 | 33 . 1851 3091 1798 578 2056 1147 827 . 1502 1914 1034 2246 1046 1846 6193 818 6480 2924 1636 316 314 3357 1477 1857 1184 30987 8515 5248 90 Guns 12953 | 33 . 1400 2442 1480 548 153 876 287 . 614 499 . 46 . . . . . . . . . . . 487 . 3402 440 246 . Cannons 36169 | . . 451 95 303 . 1470 70 . . . 101 1034 1187 109 552 357 504 4386 1134 491 316 314 1889 . 91 210 14064 3134 3817 90 Explosions 37740 | . . . 554 . 30 433 201 540 . 888 1282 . 1013 937 1294 5836 314 2094 1790 1145 . . 1468 1390 730 690 9045 4913 1153 . Melee 5309 | . . . . . . . . . . . . . . . . . . . . . . . . . 549 284 4476 . . . Ramming 194 | . . . . 15 . . . . . . 32 . . . . . . . . . . . . 87 . . . 28 32 . Kinetic 28937 | 33 . 1288 2362 1783 548 1623 620 . . 614 499 1034 1233 109 552 357 504 4386 572 491 316 314 1889 . 578 42 2871 3134 1185 . Thermal 23805 | . . 563 729 . . . 457 287 . . 266 . 65 . . . . 500 . . . . . . . 210 17320 440 2878 90 Explosive 29732 | . . . . . 30 99 . 540 . 888 1117 . 948 937 1294 5836 314 1565 1790 1145 . . 1468 . . . 5695 4913 1153 . Electromagnetic 2184 | . . . . . . 334 70 . . . . . . . . . . 29 562 . . . . . . . 1189 . . . Impact . | . . . . . . . . . . . . . . . . . . . . . . . . . . . . . . . Slashing 1049 | . . . . . . . . . . . . . . . . . . . . . . . . . 549 242 258 . . . Piercing 1154 | . . . . . . . . . . . . . . . . . . . . . . . . . . . 1154 . . . Entropic 5310 | . . . . . . . . . . . . . . . . . . . . . . . . 1390 730 690 2500 . . . Highest Corruption 36 | . . . . 5 5 3 4 4 4 4 . . 1 1 1 3 3 3 3 . . . 2 11 2 3 36 5 20 20 Average Corruption 7 | . . . . 5 5 1 3 4 4 4 . . 1 1 1 2 3 2 2 . . . 1 6 1 2 16 4 8 20 Corruption Purged 3 | . . . . . . . . . . . . . . . . . . . 3 . . . . . . . . . . . Corruption Blocked . | . . . . . . . . . . . . . . . . . . . . . . . . . . . . . . . Effects 328 | . . . . 22 59 1 7 5 . 8 . . 2 . 2 11 7 1 2 . . . 1 9 16 20 118 8 20 9 Message Errors 70 | . . . . 2 16 . 2 2 . 3 . . 1 . 1 . 2 . . . . . . 1 4 5 25 . 5 1 Matter Fused 69 | . . . . 3 16 . 2 . . 1 . . . . . 5 . . . . . . . 3 1 6 22 3 7 . Heat Flow Errors 33 | . . . . 3 4 1 . . . . . . . . . 2 1 . . . . . . 2 3 3 11 3 . . Energy Discharges 44 | . . . . 1 7 . 1 1 . 1 . . . . . 2 1 1 1 . . . . 1 4 3 16 . 3 1 Parts Rejected 6 | . . . . . . . . . . . . . . . . 1 . . . . . . . . 1 1 2 . . 1 Parts Fused 7 | . . . . 3 . . . . . . . . . . . . . . 1 . . . . . 2 . 1 . . . Data Loss (minor) 39 | . . . . 3 8 . 1 . . 2 . . . . . 1 2 . . . . . . 2 . 1 15 2 . 2 Data Loss (major) 21 | . . . . 2 5 . 1 1 . . . . . . 1 . 1 . . . . . 1 . . 1 7 . 1 . Misfires 5 | . . . . 2 . . . . . . . . 1 . . . . . . . . . . . . . 2 . . . Alerts 9 | . . . . . 3 . . . . . . . . . . . . . . . . . . . . . 5 . 1 . Misdirections 7 | . . . . . . . . . . . . . . . . . . . . . . . . . . . 3 . . 4 Weapon Failures 18 | . . . . 3 . . . 1 . 1 . . . . . . . . . . . . . . 1 . 9 . 3 . Overload Shots . | . . . . . . . . . . . . . . . . . . . . . . . . . . . . . . . Overflow Damage 5195 | . . . 20 . 13 124 . . . 13 128 . 100 63 37 170 17 508 80 116 86 52 589 124 131 94 2253 412 65 . Projectiles 2488 | . . . . . . 48 . . . . . . 86 . . 95 6 221 19 15 86 52 556 . . . 1017 247 40 . Explosions 1947 | . . . 20 . 13 76 . . . 13 128 . 14 63 37 75 11 287 61 101 . . 33 124 . 56 645 165 25 . Melee 760 | . . . . . . . . . . . . . . . . . . . . . . . . . 131 38 591 . . . Knockbacks 66 | . . 2 1 4 . 5 2 . . . . . 6 . . 3 4 11 1 2 . 2 7 . . . 8 7 1 . Impact . | . . . . . . . . . . . . . . . . . . . . . . . . . . . . . . . Kinetic 62 | . . 2 1 4 . 5 2 . . . . . 6 . . 3 4 11 1 2 . 2 4 . . . 8 6 1 . Secondary 4 | . . . . . . . . . . . . . . . . . . . . . . . 3 . . . . 1 . . Self-Inflicted Damage 1124 | . . . 28 7 31 . . . . . . . 198 . 22 50 . 107 . . . . . 177 . 168 302 14 20 . Shots 15 | . . . 1 . 1 . . . . . . . 2 . 1 1 . 3 . . . . . 1 . 1 3 . 1 . Rammed 4 | . . . . 1 . . . . . . . . . . . . . . . . . . . . . . . 1 2 . Targets Rammed 10 | . . . . 1 . . . . . . 2 . . . . . . . . . . . . 4 . . . 1 2 . Kicked 6 | . . . . . . . . . . . 2 . . . . . . . . . . . . 4 . . . . . . Crushed . | . . . . . . . . . . . . . . . . . . . . . . . . . . . . . . . Highest Temperature 722 | . . 7 177 251 263 407 345 28 . 85 348 312 359 170 330 329 533 335 302 153 112 108 196 122 194 229 722 169 197 171 Average Temperature 100 | . . 3 39 64 81 169 170 11 . 20 160 135 104 65 93 83 124 113 86 66 49 48 87 53 75 119 121 102 78 104 Received Heat Transfer 5221 | . . 204 801 171 . 207 162 105 . 109 81 . 210 9 261 90 . 40 202 51 . 9 54 153 117 90 1587 90 313 105 Effects 21 | . . . . . . 4 3 . . . . 2 . . . . 6 3 . . . . . . . . 3 . . . Shutdowns 2 | . . . . . . . . . . . . . . . . . 1 . . . . . . . . . 1 . . . Energy Bleed 4 | . . . . . . 1 2 . . . . . . . . . . . . . . . . . . . 1 . . . Interference 11 | . . . . . . 2 1 . . . . 2 . . . . 3 3 . . . . . . . . . . . . Short Circuit 1 | . . . . . . . . . . . . . . . . . 1 . . . . . . . . . . . . . Damage (minor) 2 | . . . . . . 1 . . . . . . . . . . 1 . . . . . . . . . . . . . Damage (core) 1 | . . . . . . . . . . . . . . . . . . . . . . . . . . . 1 . . . Siege Activations . | . . . . . . . . . . . . . . . . . . . . . . . . . . . . . . . Martial Activations . | . . . . . . . . . . . . . . . . . . . . . . . . . . . . . . . Shielding Activations . | . . . . . . . . . . . . . . . . . . . . . . . . . . . . . . . Robots Disrupted 1 | . . . . . . . . . . . . . . . . . . . . . . . . . . . 1 . . . Combat Hostiles 1 | . . . . . . . . . . . . . . . . . . . . . . . . . . . 1 . . . Robots Corrupted 9 | . . . . . . . . . . . . . . . . . . . 5 . . . . . . . 4 . . . Combat Hostiles 4 | . . . . . . . . . . . . . . . . . . . 2 . . . . . . . 2 . . . Parts Fried 7 | . . . . . . 1 . . . . . . . . . . . . 2 . . . . . . . 4 . . . Impact Corruptions 4 | . . . . 1 . . . . . . . . . . . . . . . . . . 2 . . . . 1 . . Robots Melted 3 | . . 1 . . . . . . . . . . . . . . . . . . . . . . . . 2 . . . Combat Hostiles 3 | . . 1 . . . . . . . . . . . . . . . . . . . . . . . . 2 . . . Parts Melted 13 | . . . 1 1 1 1 . . . . . . 1 . . 1 . 2 . . . . . . . 4 1 . . . Heat Transferred 7537 | . . 1031 700 . . . 150 . . . 250 . 50 . . . . 300 . . . . . . . 370 4363 296 27 . Parts Sabotaged . | . . . . . . . . . . . . . . . . . . . . . . . . . . . . . . . Parts Stolen . | . . . . . . . . . . . . . . . . . . . . . . . . . . . . . . . Parts Stripped 58 | . . . . . . . . . . . . . . . . . . . . . . . . . . 18 40 . . . Power Chain Reactions 5 | . . . . . . 1 2 . . . . . . . . . . 2 . . . . . . . . . . . . Alert | -11 -10 -10 -8 -8 -8 -6 -6 -6 -6 -5 -5 -5 -5 -5 -5 -5 -4 -4 -4 -4 -4 -3 -3 -3 -2 -2 -2 -1 -1 -1 ------- Run | Yrd Mat Sub Mat Sto Rec Fac Low Low Dat Pro Fac Was Fac Upp Upp War Pro Fac Upp Upp Zhi Pro Res Qua Res Tes Frg Acc Com Ac0 Maximum Alert Level 5 | . . . 1 2 1 2 . . . . 2 . 2 . . . . 4 . . . . 1 1 2 1 5 5 5 . Low Security (%) 40 | 100 100 . 56 9 91 . . . . . 60 100 75 . . . . 2 . . . . 33 54 10 32 10 . . . Level 1 24 | . . . 43 54 8 17 . . . . 24 . 17 . . . . . . . . . 66 45 67 67 5 . . . Level 2 11 | . . . . 35 . 82 . . . . 15 . 7 . . . . 1 . . . . . . 21 . 19 . . . Level 3 6 | . . . . . . . . . . . . . . . . . . 75 . . . . . . . . 12 . . . Level 4 4 | . . . . . . . . . . . . . . . . . . 19 . . . . . . . . 20 . . . Level 5 9 | . . . . . . . . . . . . . . . . . . . . . . . . . . . 31 63 43 . High Security 3 | . . . . . . . . . . . . . . . . . . . . . . . . . . . . 36 56 . Max Security . | . . . . . . . . . . . . . . . . . . . . . . . . . . . . . . . Peak Influence 2818 | 5 20 . 375 598 278 637 . . . . 462 158 438 . . . . 1320 . . . . 328 370 480 357 2811 2818 2443 . Initial 1803 | . . . 15 130 221 250 . . . . 100 158 . . . . . 150 . . . . . 176 193 236 125 1684 1803 . Average 562 | . 4 . 155 348 41 508 . . . . 195 28 156 . . . . 900 . . . . 195 229 337 242 1279 2242 2165 . Influence Increases 17215 | 5 40 275 797 974 182 1001 235 90 . 320 616 36 616 240 240 916 112 1670 358 420 15 60 578 379 701 385 3570 1374 940 70 Destroy 0b10 Robot/C 8220 | . . 200 400 480 20 180 220 80 . 280 240 . 300 220 240 780 80 640 320 320 . 40 320 100 120 120 2000 360 160 . Destroy 0b10 Robot/NC 495 | 5 . . 80 50 . 40 5 . . . 30 . 20 . . 5 10 35 . . 15 . 15 5 10 . 90 70 10 . Destroy Leader 1158 | . . 30 124 150 . 52 10 10 . 40 46 . 42 20 . . 20 152 20 30 . 10 52 20 40 10 192 58 30 . Allied During Kill 543 | . . . . 251 7 10 . . . . . . . . . 101 2 4 18 70 . 10 57 . . . 13 . . . Successful Hack 277 | . 10 . 22 25 24 34 . . . . . . 35 . . . . 12 . . . . 43 . . 27 . 24 21 . Select Force Hacks 150 | . 30 . . . 120 . . . . . . . . . . . . . . . . . . . . . . . . . Disable Machine 1455 | . . . 75 15 . 330 . . . . 45 . 135 . . . . 210 . . . . 15 75 15 60 345 60 60 15 Anti-Garrison Action 900 | . . . . . . . . . . . . . . . . . . . . . . . . . 300 . 150 400 50 . Destroy Structure 2507 | . . . 21 3 11 60 . . . . 180 36 84 . . . . 392 . . . . 76 74 111 48 750 252 354 55 Advance Influence 400 | . . . . . . 250 . . . . . . . . . . . 150 . . . . . . . . . . . . Partial Spotted 45 | . . . . . . . . . . . 15 . . . . . . . . . . . . . 15 . . . 15 . Lose Combat Pursuer 1065 | . . 45 75 . . 45 . . . . 60 . . . . 30 . 75 . . . . . 105 90 120 30 150 240 . Influence Decreases 17145 | 5 40 245 519 714 750 382 462 196 286 160 322 490 192 268 236 672 756 372 965 371 755 60 264 348 626 582 986 1363 1205 2553 Entered New Map 9383 | . . . 15 178 347 . 230 76 286 . 60 296 . 158 76 400 644 . 481 133 740 . . 138 152 184 98 1123 1015 2553 Time Decay 6595 | 5 40 228 362 416 353 262 222 120 . 140 222 194 192 110 160 232 112 342 464 238 15 60 176 150 464 368 698 150 100 . Lost Part 877 | . . 17 142 20 10 60 10 . . 20 40 . . . . . . 20 20 . . . 48 60 10 30 190 90 90 . Lost Ally 290 | . . . . 100 40 60 . . . . . . . . . 40 . 10 . . . . 40 . . . . . . . Squads Dispatched 87 | . 1 . 2 2 . 3 . . . . 6 . 2 . 1 . . 13 . . . . 3 4 1 4 23 13 9 . Investigation 9 | . 1 . . . . . . . . . . . 1 . 1 . . . . . . . . 1 . . 3 2 . . Extermination 18 | . . . . . . 1 . . . . 1 . 1 . . . . 2 . . . . 1 1 . 3 7 1 . . Reinforcement 26 | . . . 2 . . . . . . . 4 . . . . . . 7 . . . . 2 2 1 1 3 3 1 . Assault 29 | . . . . 1 . 1 . . . . . . . . . . . 4 . . . . . . . . 10 5 8 . Garrison 5 | . . . . 1 . 1 . . . . 1 . . . . . . . . . . . . . . . . 2 . . Intercept . | . . . . . . . . . . . . . . . . . . . . . . . . . . . . . . . Searches Triggered . | . . . . . . . . . . . . . . . . . . . . . . . . . . . . . . . Data Miner Redirects 3 | . . . . . . . . . . . . . . . . . . . . . . . . . . . 3 . . . Construction Impeded 3 | . . . . . . . . . . . 1 . . . . . . 1 . . . . . . . . 1 . . . Haulers Reinforced 2 | . . . . . . . . . . . 2 . . . . . . . . . . . . . . . . . . . Active Scanning Responses . | . . . . . . . . . . . . . . . . . . . . . . . . . . . . . . . Cargo Convoy Interrupts . | . . . . . . . . . . . . . . . . . . . . . . . . . . . . . . . Stealth | -11 -10 -10 -8 -8 -8 -6 -6 -6 -6 -5 -5 -5 -5 -5 -5 -5 -4 -4 -4 -4 -4 -3 -3 -3 -2 -2 -2 -1 -1 -1 --------- Run | Yrd Mat Sub Mat Sto Rec Fac Low Low Dat Pro Fac Was Fac Upp Upp War Pro Fac Upp Upp Zhi Pro Res Qua Res Tes Frg Acc Com Ac0 Distress Signals 25 | . 1 . 1 2 2 1 . . . . 3 . . . . . . . . . . . . 2 5 1 . 2 5 . Communications Jammed 61 | . . . . . . . . . . . . . . . . . . . . . . . . 29 2 . . 13 17 . Distress Signals 55 | . . . . . . . . . . . . . . . . . . . . . . . . 29 2 . . 13 11 . Times Spotted 646 | . . 26 41 27 5 23 11 5 . 14 22 . 17 1 13 60 7 43 10 11 . 2 17 39 33 13 109 28 49 20 Peak Tracking Total 18 | . . 6 5 6 3 7 7 4 . 4 14 . 6 3 10 18 3 7 6 5 . 1 5 11 5 8 10 10 10 18 Tactical Retreats 34 | . . 2 4 . . 1 . . . . 3 . . . . 2 . 2 . . . . . 2 6 2 2 3 4 1 ECM-based Alert Blocks 4 | . . . . . . . . . . . . . . . . . . . . . . . . . 4 . . . . . Traps | -11 -10 -10 -8 -8 -8 -6 -6 -6 -6 -5 -5 -5 -5 -5 -5 -5 -4 -4 -4 -4 -4 -3 -3 -3 -2 -2 -2 -1 -1 -1 ------- Run | Yrd Mat Sub Mat Sto Rec Fac Low Low Dat Pro Fac Was Fac Upp Upp War Pro Fac Upp Upp Zhi Pro Res Qua Res Tes Frg Acc Com Ac0 Traps Triggered 27 | . . 2 2 . . . . . . . 1 . . . . . . . . . . . . 2 . . 12 7 1 . Indirectly . | . . . . . . . . . . . . . . . . . . . . . . . . . . . . . . . Trap Hack Attempts . | . . . . . . . . . . . . . . . . . . . . . . . . . . . . . . . Triggered . | . . . . . . . . . . . . . . . . . . . . . . . . . . . . . . . Disarmed . | . . . . . . . . . . . . . . . . . . . . . . . . . . . . . . . Reprogrammed . | . . . . . . . . . . . . . . . . . . . . . . . . . . . . . . . Reused . | . . . . . . . . . . . . . . . . . . . . . . . . . . . . . . . Traps Extracted . | . . . . . . . . . . . . . . . . . . . . . . . . . . . . . . . Installed . | . . . . . . . . . . . . . . . . . . . . . . . . . . . . . . . Triggered . | . . . . . . . . . . . . . . . . . . . . . . . . . . . . . . . Machines | -11 -10 -10 -8 -8 -8 -6 -6 -6 -6 -5 -5 -5 -5 -5 -5 -5 -4 -4 -4 -4 -4 -3 -3 -3 -2 -2 -2 -1 -1 -1 ---------- Run | Yrd Mat Sub Mat Sto Rec Fac Low Low Dat Pro Fac Was Fac Upp Upp War Pro Fac Upp Upp Zhi Pro Res Qua Res Tes Frg Acc Com Ac0 Machines Disabled 124 | . . 1 5 1 . 22 1 . . . 3 . 9 . 5 2 . 14 1 . 2 . 1 5 3 4 34 4 6 1 Max in Single Turn 9 | . . 1 3 1 . 9 1 . . . 1 . 3 . 1 2 . 4 1 . 1 . 1 1 1 2 2 1 2 1 Garrison Access 9 | . . . 1 1 . . . . . . . . . . . . . . . . . . 1 . 3 . 1 2 . . Phase Generator 1 | . . . . . . . . . . . . . . . . . . . . . . . . . . . . . 1 . Machines Repaired . | . . . . . . . . . . . . . . . . . . . . . . . . . . . . . . . Machines Dismantled . | . . . . . . . . . . . . . . . . . . . . . . . . . . . . . . . Machines Sabotaged . | . . . . . . . . . . . . . . . . . . . . . . . . . . . . . . . Overloaded Fab Kills . | . . . . . . . . . . . . . . . . . . . . . . . . . . . . . . . Hacking | -11 -10 -10 -8 -8 -8 -6 -6 -6 -6 -5 -5 -5 -5 -5 -5 -5 -4 -4 -4 -4 -4 -3 -3 -3 -2 -2 -2 -1 -1 -1 --------- Run | Yrd Mat Sub Mat Sto Rec Fac Low Low Dat Pro Fac Was Fac Upp Upp War Pro Fac Upp Upp Zhi Pro Res Qua Res Tes Frg Acc Com Ac0 Machines Accessed 103 | . 2 2 12 11 12 4 1 1 3 . 3 . 8 . 1 4 . 2 1 . 4 . 7 3 3 3 4 10 2 . Terminals 57 | . 1 . 10 8 6 2 1 1 . . 2 . 2 . 1 . . 2 . . . . 6 3 1 3 3 3 2 . Fabricators 5 | . . . . . . . . . . . . . 3 . . . . . . . . . . . 1 . . 1 . . Repair Stations . | . . . . . . . . . . . . . . . . . . . . . . . . . . . . . . . Recycling Units 16 | . 1 . . 2 5 2 . . . . 1 . 2 . . . . . . . . . . . . . . 3 . . Scanalyzers 4 | . . . 1 . . . . . . . . . 1 . . . . . . . . . . . . . 1 1 . . Garrison Access 6 | . . . 1 1 . . . . . . . . . . . . . . . . . . 1 . 1 . . 2 . . Total Hacks 251 | . 7 6 27 24 24 8 5 1 27 . 6 . 21 . 5 7 . 5 1 . 16 . 14 8 6 3 4 22 4 . Successful 150 | . 3 6 11 17 16 3 5 1 27 . . . 12 . 5 7 . 3 1 . 16 . 7 . 1 1 2 5 1 . Failed 100 | . 4 . 15 7 8 5 . . . . 6 . 9 . . . . 2 . . . . 7 8 5 2 2 17 3 . Catastrophic 27 | . . . 6 2 . 2 . . . . 2 . 1 . . . . . . . . . . 4 2 2 1 3 2 . Database Lockouts 1 | . . . 1 . . . . . . . . . . . . . . . . . . . . . . . . . . . Manual 75 | . 2 . 22 13 14 . . . . . . . 6 . . 1 . . . . . 1 7 1 . . . 5 3 . Terminals 128 | . 5 . 24 20 9 5 5 1 . . 4 . 6 . 5 . . 5 . . . . 13 8 2 3 3 6 4 . Fabricators 12 | . . . . . . . . . . . . . 7 . . . . . . . . . . . 3 . . 2 . . Repair Stations . | . . . . . . . . . . . . . . . . . . . . . . . . . . . . . . . Recycling Units 32 | . 2 . . 3 13 3 . . . . 2 . 2 . . . . . . . . . . . . . . 7 . . Scanalyzers 11 | . . . 2 . . . . . . . . . 6 . . . . . . . . . . . . . 1 2 . . Garrison Access 9 | . . . 1 1 . . . . . . . . . . . . . . . . . . 1 . 1 . . 5 . . Terminal Hacks 92 | . 2 6 1 6 3 2 5 1 27 . . . . . 5 7 . 3 1 . 16 . 3 . . 1 2 . 1 . Record 34 | . . 5 . . . . 5 1 6 . . . . . 5 6 . . . . 5 . . . . . 1 . . . Part Schematic 16 | . . . . 1 . . . . 12 . . . . . . . . . . . 3 . . . . . . . . . Robot Schematic 8 | . . . . . . 2 . . 6 . . . . . . . . . . . . . . . . . . . . . Robot Analysis 4 | . . . . . . . . . . . . . . . . . . . . . 4 . . . . . . . . . Prototype ID Bank 8 | . 1 . . . . . . . 3 . . . . . . . . . . . 4 . . . . . . . . . Open Door 5 | . . . . 2 . . . . . . . . . . . 1 . . 1 . . . 1 . . . . . . . Level Access Points 2 | . . . . . . . . . . . . . . . . . . 1 . . . . . . . 1 . . . . Branch Access Points 3 | . . . 1 . . . . . . . . . . . . . . 1 . . . . 1 . . . . . . . Terminal Index 4 | . . . . 1 1 . . . . . . . . . . . . . . . . . 1 . . . . . 1 . Locate Traps 1 | . . . . 1 . . . . . . . . . . . . . . . . . . . . . . . . . . Zone Layout 3 | . 1 . . 1 . . . . . . . . . . . . . 1 . . . . . . . . . . . . Proto ID Catalog 2 | . . 1 . . . . . . . . . . . . . . . . . . . . . . . . 1 . . . Release Object 2 | . . . . . 2 . . . . . . . . . . . . . . . . . . . . . . . . . Fabricator Hacks 5 | . . . . . . . . . . . . . 4 . . . . . . . . . . . . . . 1 . . Network Status 1 | . . . . . . . . . . . . . 1 . . . . . . . . . . . . . . . . . Load Schematic 1 | . . . . . . . . . . . . . 1 . . . . . . . . . . . . . . . . . Build 3 | . . . . . . . . . . . . . 2 . . . . . . . . . . . . . . 1 . . Repair Station Hacks . | . . . . . . . . . . . . . . . . . . . . . . . . . . . . . . . Recycling Unit Hacks 10 | . . . . 3 3 1 . . . . . . 2 . . . . . . . . . . . . . . 1 . . Retrieve Matter 1 | . . . . 1 . . . . . . . . . . . . . . . . . . . . . . . . . . Retrieve Components 9 | . . . . 2 3 1 . . . . . . 2 . . . . . . . . . . . . . . 1 . . Scanalyzer 6 | . . . 1 . . . . . . . . . 4 . . . . . . . . . . . . . . 1 . . Insert Component 2 | . . . . . . . . . . . . . 1 . . . . . . . . . . . . . . 1 . . Analyze 2 | . . . . . . . . . . . . . 2 . . . . . . . . . . . . . . . . . Retrieve Study 2 | . . . 1 . . . . . . . . . 1 . . . . . . . . . . . . . . . . . Garrison Access Hacks 4 | . . . 1 1 . . . . . . . . . . . . . . . . . . 1 . 1 . . . . . Seal Access 4 | . . . 1 1 . . . . . . . . . . . . . . . . . . 1 . 1 . . . . . Unauthorized Hacks 33 | . 1 . 8 7 10 . . . . . . . 2 . . . . . . . . . 3 . . . . 2 . . Terminals 25 | . . . 8 7 6 . . . . . . . 1 . . . . . . . . . 3 . . . . . . . Assimilate 1 | . . . . . . . . . . . . . 1 . . . . . . . . . . . . . . . . . Botnet 4 | . . . 2 1 1 . . . . . . . . . . . . . . . . . . . . . . . . . Operators 2 | . . . 1 1 . . . . . . . . . . . . . . . . . . . . . . . . . . Skim 18 | . . . 5 5 5 . . . . . . . . . . . . . . . . . 3 . . . . . . . Fabricators 1 | . . . . . . . . . . . . . 1 . . . . . . . . . . . . . . . . . Prioritize 1 | . . . . . . . . . . . . . 1 . . . . . . . . . . . . . . . . . Repair Stations . | . . . . . . . . . . . . . . . . . . . . . . . . . . . . . . . Recycling Units 5 | . 1 . . . 4 . . . . . . . . . . . . . . . . . . . . . . . . . Tunnel 5 | . 1 . . . 4 . . . . . . . . . . . . . . . . . . . . . . . . . Scanalyzers . | . . . . . . . . . . . . . . . . . . . . . . . . . . . . . . . Garrison Access 2 | . . . . . . . . . . . . . . . . . . . . . . . . . . . . 2 . . Jam 2 | . . . . . . . . . . . . . . . . . . . . . . . . . . . . 2 . . Data Cores Recovered 3 | . . . . 1 . . . . . . . . . . . . . . . . . . 1 . . . . . 1 . Used 1 | . . . . . . . . . . . . . . . . . . . . . . . 1 . . . . . . . Hacking Detections 61 | . 1 . 8 7 6 4 1 1 . . 3 . 5 . 1 . . 1 . . . . 5 3 2 3 2 6 2 . Full Trace Events 5 | . . . . . 1 . 1 . . . . . 1 . 1 . . . . . . . . 1 . . . . . . Feedback Events 1 | . . . . . . . 1 . . . . . . . . . . . . . . . . . . . . . . . Corruption 1 | . . . . . . . 1 . . . . . . . . . . . . . . . . . . . . . . . Feedback Blocked . | . . . . . . . . . . . . . . . . . . . . . . . . . . . . . . . Robot Schematics Acquired 13 | . . . . . . 2 . . 6 . . . . . . . . . . . . . . 1 . . 4 . . . Robots Built 4 | . . . . . . . . . . . . . . . . . . . . . . . . . . . . 4 . . Authchips . | . . . . . . . . . . . . . . . . . . . . . . . . . . . . . . . Time 27 | . . . . . . . . . . . . . . . . . . . . . . . . . . . . 27 . . Total Robot Build Rating 4 | . . . . . . . . . . . . . . . . . . . . . . . . . . . . 4 . . Part Schematics Acquired 40 | . . . . 1 . . . . 12 . . . 1 . . . . . . . 3 . . . . 7 16 . . . Parts Built 4 | . . . . . . . . . . . . . 4 . . . . . . . . . . . . . . . . . Authchips . | . . . . . . . . . . . . . . . . . . . . . . . . . . . . . . . Time 122 | . . . . . . . . . . . . . 122 . . . . . . . . . . . . . . . . . Total Part Build Rating 30 | . . . . . . . . . . . . . 30 . . . . . . . . . . . . . . . . . Part Studies Acquired 2 | . . . 1 . . . . . . . . . 1 . . . . . . . . . . . . . . . . . Parts Repaired . | . . . . . . . . . . . . . . . . . . . . . . . . . . . . . . . Time . | . . . . . . . . . . . . . . . . . . . . . . . . . . . . . . . Parts Recycled . | . . . . . . . . . . . . . . . . . . . . . . . . . . . . . . . Recycled Matter . | . . . . . . . . . . . . . . . . . . . . . . . . . . . . . . . Retrieved Matter . | . . . . . . . . . . . . . . . . . . . . . . . . . . . . . . . Retrieved Components 19 | . . . . 3 6 2 . . . . . . 5 . . . . . . . . . . . . . . 3 . . Parts Scanalyzed 1 | . . . . . . . . . . . . . 1 . . . . . . . . . . . . . . . . . Part Schematics Acquired 1 | . . . . . . . . . . . . . 1 . . . . . . . . . . . . . . . . . Parts Damaged . | . . . . . . . . . . . . . . . . . . . . . . . . . . . . . . . Bothacking | -11 -10 -10 -8 -8 -8 -6 -6 -6 -6 -5 -5 -5 -5 -5 -5 -5 -4 -4 -4 -4 -4 -3 -3 -3 -2 -2 -2 -1 -1 -1 ------------ Run | Yrd Mat Sub Mat Sto Rec Fac Low Low Dat Pro Fac Was Fac Upp Upp War Pro Fac Upp Upp Zhi Pro Res Qua Res Tes Frg Acc Com Ac0 Used RIF Installer . | . . . . . . . . . . . . . . . . . . . . . . . . . . . . . . . Robots Hacked . | . . . . . . . . . . . . . . . . . . . . . . . . . . . . . . . Non-combat . | . . . . . . . . . . . . . . . . . . . . . . . . . . . . . . . Combat . | . . . . . . . . . . . . . . . . . . . . . . . . . . . . . . . Robot Hacks Applied . | . . . . . . . . . . . . . . . . . . . . . . . . . . . . . . . Relay Couplers Released 5 | . . . . . . . . . . . . . . . . . . . . . . . . . 4 . 1 . . . Machine Destruction 5 | . . . . . . . . . . . . . . . . . . . . . . . . . 4 . 1 . . . Fabnet Peak Effective % . | . . . . . . . . . . . . . . . . . . . . . . . . . . . . . . . Robots Rewired 8 | . . . . . . . . . . . . . . . . 5 . . 2 . . . . . . . 1 . . . Allies Hacked 1 | . . . . . . . . . . . . . . . . . . . . . . . 1 . . . . . . . Hacks Repelled . | . . . . . . . . . . . . . . . . . . . . . . . . . . . . . . . Allies | -11 -10 -10 -8 -8 -8 -6 -6 -6 -6 -5 -5 -5 -5 -5 -5 -5 -4 -4 -4 -4 -4 -3 -3 -3 -2 -2 -2 -1 -1 -1 -------- Run | Yrd Mat Sub Mat Sto Rec Fac Low Low Dat Pro Fac Was Fac Upp Upp War Pro Fac Upp Upp Zhi Pro Res Qua Res Tes Frg Acc Com Ac0 Total Allies 23 | . . . . 10 . . . . . . . . 1 . . 5 . . 2 . . . . . . . 1 4 . . Largest Group 10 | . . . . 10 5 3 . . . . . . 1 1 1 6 2 2 2 2 2 2 2 . . . 1 4 . . Highest-Rated Group 299 | . . . . 173 93 61 . . . . . . 26 26 26 299 90 90 96 96 96 96 96 . . . 60 24 . . Highest-Rated Ally 68 | . . . . 29 29 29 . . . . . . 26 26 26 68 64 64 49 49 49 49 49 . . . 60 6 . . Total Orders 7 | . . . . . . . . . . . . . . . . 3 . . . . 2 2 . . . . . . . . STAY 4 | . . . . . . . . . . . . . . . . 2 . . . . 1 1 . . . . . . . . FOLLOW 3 | . . . . . . . . . . . . . . . . 1 . . . . 1 1 . . . . . . . . Ally Attacks 173 | . . . . 69 12 20 . . . . . . . . . 38 . . 3 8 . 3 17 . . . 3 . . . Total Damage 3046 | . . . . 753 158 270 . . . . . . . . . 1063 . . 79 190 . 102 303 . . . 128 . . . Kills 30 | . . . . 9 3 1 . . . . . . . . . 9 . . . 1 . 1 5 . . . 1 . . . Allies Corrupted 2 | . . . . . . . . . . . . . . . . 1 . . . . . . . . . . 1 . . . Allies Melted 2 | . . . . . . . 2 . . . . . . . . . . . . . . . . . . . . . . . Intel | -11 -10 -10 -8 -8 -8 -6 -6 -6 -6 -5 -5 -5 -5 -5 -5 -5 -4 -4 -4 -4 -4 -3 -3 -3 -2 -2 -2 -1 -1 -1 ------- Run | Yrd Mat Sub Mat Sto Rec Fac Low Low Dat Pro Fac Was Fac Upp Upp War Pro Fac Upp Upp Zhi Pro Res Qua Res Tes Frg Acc Com Ac0 Active Infowar (turns) 12388 | 20 153 83 . . . . . . . . 245 977 448 224 98 711 84 209 1129 511 296 366 369 315 1165 856 2955 489 563 122 Optics 2130 | . . . . . . . . . . . . . . . . . . . . . . . . . . 348 1782 . . . Sensors 7834 | . . . . . . . . . . . 245 977 448 224 98 711 84 209 995 511 296 366 336 37 267 856 499 154 507 14 Seismic 256 | 20 153 83 . . . . . . . . . . . . . . . . . . . . . . . . . . . . Cloaking 5117 | . . . . . . . . . . . . . . . . . . . . . . . . . 727 852 2378 488 550 122 Jamming 1349 | . . . . . . . . . . . . . . . . . . . 239 . . . 33 315 205 . . 168 389 . ECM 252 | . . . . . . . . . . . . . . . . . . . . . . . . . 252 . . . . . Robot Analysis Total 4 | . . . . . . . . . . . . . . . . . . . . . 4 . . . . . . . . . Derelict Logs Recovered 12 | . . 2 . . . . 1 2 . . . . . 1 1 . 1 . 3 1 . . . . . . . . . . Drone Launches . | . . . . . . . . . . . . . . . . . . . . . . . . . . . . . . . Drone Recoveries . | . . . . . . . . . . . . . . . . . . . . . . . . . . . . . . . Exploration | -11 -10 -10 -8 -8 -8 -6 -6 -6 -6 -5 -5 -5 -5 -5 -5 -5 -4 -4 -4 -4 -4 -3 -3 -3 -2 -2 -2 -1 -1 -1 ------------- Run | Yrd Mat Sub Mat Sto Rec Fac Low Low Dat Pro Fac Was Fac Upp Upp War Pro Fac Upp Upp Zhi Pro Res Qua Res Tes Frg Acc Com Ac0 Turns Passed 26395 | 93 153 5043 1903 1018 2372 573 471 247 36 308 474 994 464 224 339 1310 335 765 1163 511 296 366 406 315 1174 856 2956 489 619 122 Spaces Moved 20620 | 49 75 2553 851 588 1038 308 392 316 74 388 563 381 497 300 430 1019 351 689 1049 492 171 465 377 396 1565 685 2335 892 1012 319 Core 16 | 9 . . . . 7 . . . . . . . . . . . . . . . . . . . . . . . . . Treads 2708 | 40 75 2006 18 . 113 . . . . . . . . . . . . . . . . . . . . 1 455 . . . Legs 4705 | . . . . . . 77 207 183 . 336 375 147 . . . 803 351 268 . . . . . 198 306 398 909 . 147 . Wheels 2819 | . . 547 833 588 720 131 . . . . . . . . . . . . . . . . . . . . . . . . Hover 5438 | . . . . . 73 . . 133 74 52 37 99 497 300 430 216 . . . . 81 465 377 91 392 7 361 789 645 319 Flight 4934 | . . . . . 125 100 185 . . . 151 135 . . . . . 421 1049 492 90 . . 107 867 279 610 103 220 . Fastest Speed 22 | 50 160 110 90 105 114 47 37 37 49 49 30 30 61 61 61 61 75 75 80 80 64 64 64 43 33 31 36 35 22 30 Average Speed 85 | 139 160 177 173 124 173 109 65 42 49 49 44 84 62 65 61 64 75 78 80 92 88 64 67 58 50 46 46 37 32 30 Slowest Speed 1450 | 160 160 1160 1160 135 1450 144 116 118 49 49 76 120 161 161 61 108 75 80 80 111 111 64 108 64 89 61 133 76 73 30 Overloaded Moves 72 | . . . . . . . . . . . . . . . . . . . . . . . . . . . . . 72 . Propulsion Burnouts . | . . . . . . . . . . . . . . . . . . . . . . . . . . . . . . . Robots Hopped 11 | . . . . . . 3 . . . . . . . . . . . 2 . . . . . 3 3 . . . . . Potential Cave-ins 22 | . . 2 . . . . . . . . 2 . . . . . . . . . . . . . . . 18 . . . Cave-ins Triggered 1 | . . . . . . . . . . . . . . . . . . . . . . . . . . . 1 . . . Teleports 21 | . . . . . . . . . . . . . . . . . . . . . . . . 3 . . 16 . 1 1 Exploration Rate (%) 51 | 3 16 94 71 74 97 10 47 47 68 54 15 97 15 53 62 90 63 15 91 69 60 57 13 57 39 81 38 27 45 26 Regions Visited 30 Branch Regions 20 Pre-discovered Areas 23 | . 1 1 3 4 9 . . . 1 . . . . . . . 1 . . . 3 . . . . . . . . . Known Exits Taken 21 | . . 1 1 . 1 1 . . . 1 . . 1 1 1 1 1 1 1 1 1 1 1 1 1 1 1 1 . . Unknown Exits Taken 7 | 1 1 . . 1 . . 1 1 1 . . . . . . . . . . . . . . . . . . . 1 . Scrap Searched 34 | . . 13 . . . . 4 4 . 1 . . . 1 3 . 1 . 4 1 . 2 . . . . . . . . Spaces Dug 141 | . . 8 . . . 6 1 1 . 39 26 . . . . . . 9 . . . 2 12 3 6 5 15 3 5 . Terrain Destroyed 1926 | . . 13 20 . 12 35 12 41 . 150 109 25 50 52 40 162 48 250 40 81 1 12 39 88 95 15 251 106 163 16 Melee 26 | . . . . . . . . . . . . . . . . . . . . . . . . 1 6 5 14 . . . Projectile 492 | . . 13 5 . . 32 3 7 . 9 24 11 8 4 14 3 15 80 6 15 1 12 23 3 4 . 121 25 38 16 AOE 1408 | . . . 15 . 12 3 9 34 . 141 85 14 42 48 26 159 33 170 34 66 . . 16 84 85 10 116 81 125 . Terrain Rammed . | . . . . . . . . . . . . . . . . . . . . . . . . . . . . . . . Walls Destroyed . | . . . . . . . . . . . . . . . . . . . . . . . . . . . . . . . Machines Disabled . | . . . . . . . . . . . . . . . . . . . . . . . . . . . . . . . Actions | -11 -10 -10 -8 -8 -8 -6 -6 -6 -6 -5 -5 -5 -5 -5 -5 -5 -4 -4 -4 -4 -4 -3 -3 -3 -2 -2 -2 -1 -1 -1 --------- Run | Yrd Mat Sub Mat Sto Rec Fac Low Low Dat Pro Fac Was Fac Upp Upp War Pro Fac Upp Upp Zhi Pro Res Qua Res Tes Frg Acc Com Ac0 Total 27559 | 68 108 2836 1064 795 1609 495 543 395 73 459 722 1033 622 319 485 1616 405 826 1334 532 309 526 479 466 1880 1190 3786 1006 1235 343 Wait 4138 | . 34 79 38 93 508 116 78 34 . 17 41 612 64 8 22 486 30 20 217 11 102 49 34 16 202 413 704 20 85 5 Move 20569 | 48 74 2552 850 587 1037 301 391 315 73 387 563 380 496 299 429 1018 350 684 1048 491 170 464 376 389 1560 684 2333 891 1011 318 Hop 9 | . . . . . . 3 . . . . . . . . . . . 2 . . . . . 3 1 . . . . . Pick Up 384 | 10 . 29 47 20 13 7 14 4 . 2 11 2 7 . 3 12 . 9 3 1 3 1 3 11 15 20 99 17 16 5 Fast Attach 85 | . . 1 3 1 1 1 1 . . 2 2 5 2 . 2 2 . . . . 9 . 2 5 10 5 30 1 . . Attach 243 | 7 . 5 16 6 1 5 5 2 . 5 11 2 2 2 . 3 1 3 5 4 3 1 7 8 9 15 67 19 22 7 Detach 84 | . . 1 1 . . . 3 2 . 3 7 1 1 1 1 2 . . 2 4 3 . 3 5 5 2 26 1 8 2 Swap 116 | . . 10 3 9 2 . 2 . . . 6 2 7 . 1 6 2 8 9 . . . . 1 5 4 27 2 9 1 Drop 318 | . . 17 5 10 31 4 4 4 . 1 9 6 11 1 5 7 3 5 2 1 10 2 1 11 20 22 105 7 13 1 Fire 1404 | 3 . 136 101 68 16 58 45 34 . 42 70 23 32 8 22 45 19 95 37 20 9 9 53 8 31 9 299 44 64 4 Melee 144 | . . . . . . . . . . . . . . . . . . . . . . . . 5 22 15 94 3 5 . Ram 4 | . . . . 1 . . . . . . . . . . . . . . . . . . . . . . . 1 2 . Kick 6 | . . . . . . . . . . . 2 . . . . . . . . . . . . 4 . . . . . . Crush . | . . . . . . . . . . . . . . . . . . . . . . . . . . . . . . . Escape Stasis 2 | . . . . . . . . . . . . . . . . . . . . . . . . . . 1 1 . . . Rewire 47 | . . . . . . . . . . . . . . . . 35 . . 11 . . . . . . . 1 . . . Trap . | . . . . . . . . . . . . . . . . . . . . . . . . . . . . . . . Miscellaneous 6 | . . 6 . . . . . . . . . . . . . . . . . . . . . . . . . . . . Route ------- -11/Scrapyard -10/Materials -10/Subcaves (discovered 2 exits: *Mat x2) -8/Materials (discovered 4 exits: *Fac x3 / *Sto) -8/Storage -8/Recycling -6/Factory (discovered 7 exits: Fac x4 / *Low x2 / Ext) -6/Lower Caves -6/Lower Caves -6/Data Miner -5/Proximity Caves -5/Factory -5/Waste -5/Factory -5/Upper Caves -5/Upper Caves (discovered 2 exits: *Fac / *War) -5/Warlord -4/Proximity Caves -4/Factory (discovered 6 exits: *Res x4 / *Upp x2) -4/Upper Caves -4/Upper Caves (discovered 2 exits: *Res / *Zhi) -4/Zhirov -3/Proximity Caves -3/Research (discovered 4 exits: Res / *Arm / *Qua x2) -3/Quarantine -2/Research (discovered 3 exits: *Acc x2 / *Tes) -2/Testing (discovered 3 exits: *Acc / *Sec / *Frg) -2/Protoforge -1/Access -1/Command (discovered 2 exits: [*Sur] / [*Ac0]) -1/Access_0 To Epsilon Eridani History --------- Turn | Location | Event 7 | -11/Scrapyard | Discovered new exit (range 15) 94 | -11/Scrapyard | Entered Materials 95 | -10/Materials | Met a group of wandering Federalists 240 | -10/Materials | Discovered new exit (range 6) 247 | -10/Materials | Entered Subcaves 248 | -10/Subcaves | Continued accompanying wandering Federalists (4) 248 | -10/Subcaves | Approached by a straggling Scientist 275 | -10/Subcaves | A swath of the cavern ceiling suddenly collapsed 304 | -10/Subcaves | Build established: Mutant 335 | -10/Subcaves | Lost 4 allies 1020 | -10/Subcaves | Identified exit to Materials 1024 | -10/Subcaves | Visited 4L-MR0's lab 1507 | -10/Subcaves | Build established: Subdweller-Mutant 2066 | -10/Subcaves | Visited Clippyterm 2070 | -10/Subcaves | Learned Factory fabricator intel 2070 | -10/Subcaves | Learned Factory stockpile data 2219 | -10/Subcaves | Learned location of Zion (-7) 2219 | -10/Subcaves | Met a Zionite searching for "candidates" 2803 | -10/Subcaves | Build established: Mutant 2896 | -10/Subcaves | Discovered exit to Materials (range 10) 2899 | -10/Subcaves | Learned 2 Materials zone layouts 2918 | -10/Subcaves | Shifting Twisted Machinery released Flamer 2927 | -10/Subcaves | Shifting Twisted Machinery released Battle Cannon 3164 | -10/Subcaves | Disturbed a concealed Subdweller 3166 | -10/Subcaves | Core integrity fell below 50% 3766 | -10/Subcaves | A swath of the cavern ceiling suddenly collapsed 4216 | -10/Subcaves | Build established: Hauler-Mutant 4532 | -10/Subcaves | Found Prototype Special Melee Weapon 4537 | -10/Subcaves | Found Arachnoskeleton 5290 | -10/Subcaves | Entered Materials 5290 | -8/Materials | Evolved 4 slots: Propulsion x2, Utility x1, Weapon x1 5291 | -8/Materials | Identified exit to Factory 5468 | -8/Materials | Lost 3 parts (1p2w) 6086 | -8/Materials | Build established: Hauler-Tank 6190 | -8/Materials | Discovered exit to Factory (range 5) 6657 | -8/Materials | Lost 5 parts (1p2u2w) 6756 | -8/Materials | Identified exit to Storage 6795 | -8/Materials | Learned Storage stockpile data 6856 | -8/Materials | Learned 2 Storage zone layouts 6857 | -8/Materials | Learned location of Storage (-8) 6869 | -8/Materials | Learned Storage stockpile data 6899 | -8/Materials | Central database locked down 7111 | -8/Materials | Build established: Tank 7193 | -8/Materials | Entered Storage 7224 | -8/Storage | Lost 4 parts (1n1u2w) 7361 | -8/Storage | Assisted by bots powering up and referring to "LRC-V3" 7537 | -8/Storage | Garrison activated, responded to threat 7563 | -8/Storage | Core integrity fell below 50% 7602 | -8/Storage | Loaded intel: 1 garrison access location 7666 | -8/Storage | Learned 2 Storage zone layouts 7794 | -8/Storage | Learned location of 1 exit from Recycling 7815 | -8/Storage | Learned location of 3 exits from Factory 7879 | -8/Storage | Build established: Commander-Tank 7918 | -8/Storage | Learned 4 Lower Caves zone layouts 7931 | -8/Storage | Used back door to open Recycling access 7931 | -8/Storage | Discovered new exit (range 5) 7969 | -8/Storage | Learned Factory recycling unit intel 7993 | -8/Storage | First assault squad dispatched 8211 | -8/Storage | Entered Recycling 8211 | -8/Recycling | Accompanied by 5 allies 8212 | -8/Recycling | Identified exit to Factory 8652 | -8/Recycling | Learned location of Extension (-6) 8685 | -8/Recycling | Learned Storage trap positions 8707 | -8/Recycling | Build established: Tank 8733 | -8/Recycling | Learned Factory stockpile data 8749 | -8/Recycling | Learned Storage trap positions 8751 | -8/Recycling | Entered Scraplab 8758 | -8/Recycling | Found Prototype Device 8758 | -8/Recycling | Identified Scrap Engine 8776 | -8/Recycling | Learned location of Lower Caves (-7) 9216 | -8/Recycling | Build established: Construct 10583 | -8/Recycling | Entered Factory 10583 | -6/Factory | Accompanied by 3 allies 10583 | -6/Factory | Evolved 4 slots: Power x1, Propulsion x1, Utility x2 10584 | -6/Factory | Identified exit to Factory 10584 | -6/Factory | Identified exit to Lower Caves 10585 | -6/Factory | Identified exit to Extension 10587 | -6/Factory | Loaded intel: 6 fabricator locations 10588 | -6/Factory | Loaded intel: 8 recycling unit locations 10694 | -6/Factory | Lost 3 allies 10933 | -6/Factory | First assault squad dispatched 10938 | -6/Factory | Garrison activated, responded to threat 10991 | -6/Factory | Found Hvy. Reactive Plating 10993 | -6/Factory | Found Hvy. Reactive Plating 11042 | -6/Factory | Spotted B-75 Beast 11156 | -6/Factory | Entered Lower Caves 11211 | -6/Lower Caves | Learned Factory trap positions 11248 | -6/Lower Caves | Attracted the attention of an 0b10 base 11283 | -6/Lower Caves | Core integrity fell below 50% 11315 | -6/Lower Caves | Learned Armory terminal intel 11315 | -6/Lower Caves | Learned Armory stockpile data 11315 | -6/Lower Caves | Learned Research stockpile data 11315 | -6/Lower Caves | Learned Armory trap positions 11317 | -6/Lower Caves | Destroyed 7 combat bots 11536 | -6/Lower Caves | Found Alien Artifact 11537 | -6/Lower Caves | Identified Core Expander 11537 | -6/Lower Caves | Installed Core Expander, added new Utility slot 11615 | -6/Lower Caves | Discovered new exit (range 9) 11627 | -6/Lower Caves | Entered another Lower Caves area 11634 | -6/Lower Caves | Encountered a Warlord checkpoint 11734 | -6/Lower Caves | Learned Factory security intel 11737 | -6/Lower Caves | Learned location of 1 exit from Factory 11805 | -6/Lower Caves | Spotted B-75 Beast 11869 | -6/Lower Caves | Discovered new exit (range 10) 11874 | -6/Lower Caves | Entered Data Miner 11874 | -6/Data Miner | Discovered new exit (range 6) 11884 | -6/Data Miner | Met Data Miner 11893 | -6/Data Miner | Learned location of Section 7 (-2) 11893 | -6/Data Miner | Acquired the access code to Warlord's prototype stash 11899 | -6/Data Miner | Received God Mode back door access code from Data Miner 11910 | -6/Data Miner | Entered Proximity Caves 11971 | -5/Proximity Caves | Attracted the attention of an 0b10 checkpoint 12212 | -5/Proximity Caves | Discovered exit to Factory (range 11) 12218 | -5/Proximity Caves | Entered Factory 12218 | -5/Factory | Evolved 2 slots: Utility x1, Weapon x1 12219 | -5/Factory | Identified exit to Factory 12220 | -5/Factory | Loaded intel: 92 trap records 12515 | -5/Factory | Garrison activated, responded to threat 12525 | -5/Factory | Found Prototype Launcher 12527 | -5/Factory | Found Prototype Launcher 12529 | -5/Factory | Identified Mni. Smartbomb Launcher (x2) 12533 | -5/Factory | Found Faulty Mni. Smartbomb Launcher 12692 | -5/Factory | Manually triggered Chute Trap 12692 | -5/Factory | Sucked down chute 12692 | -5/Factory | Entered Waste 12692 | -5/Waste | The area was eerily silent 13447 | -5/Waste | Found Prototype Device 13447 | -5/Waste | Identified Adv. Kinecellerator 13458 | -5/Waste | Found Prototype Processor 13458 | -5/Waste | Identified Spectral Analyzer 13514 | -5/Waste | Discovered new exit (range 16) 13626 | -5/Waste | Identified exit to Factory 13686 | -5/Waste | Entered Factory 13836 | -5/Factory | Fabricated Hyp. Mass Driver? 13846 | -5/Factory | Fabricated Lgt. Particle Reactor? 14128 | -5/Factory | Discovered new exit (range 14) 14138 | -5/Factory | Identified exit to Upper Caves 14150 | -5/Factory | Entered Upper Caves 14150 | -5/Upper Caves | Accompanied by 1 ally 14276 | -5/Upper Caves | Attracted the attention of an 0b10 checkpoint 14347 | -5/Upper Caves | Identified exit to Upper Caves 14374 | -5/Upper Caves | Entered another Upper Caves area 14374 | -5/Upper Caves | Accompanied by 1 ally 14382 | -5/Upper Caves | Discovered exit to Factory (range 10) 14465 | -5/Upper Caves | Attracted the attention of an 0b10 base 14519 | -5/Upper Caves | Learned Factory trap positions 14519 | -5/Upper Caves | Learned Factory garrison access intel 14519 | -5/Upper Caves | Learned Factory security intel 14525 | -5/Upper Caves | Destroyed 12 combat bots 14578 | -5/Upper Caves | Identified exit to Warlord 14713 | -5/Upper Caves | Entered Warlord 14713 | -5/Warlord | Accompanied by 1 ally 14734 | -5/Warlord | System corruption cleaned by Quarantine Array 14767 | -5/Warlord | Opened Warlord's prototype stash 14784 | -5/Warlord | Found Prototype Device 14893 | -5/Warlord | Learned Research recycling unit intel 14893 | -5/Warlord | Learned Testing security intel 14893 | -5/Warlord | Learned 4 Research zone layouts 14893 | -5/Warlord | Learned 4 Research zone layouts 14893 | -5/Warlord | Learned 4 Testing zone layouts 14894 | -5/Warlord | Learned Testing emergency access door positions 15023 | -5/Warlord | Received a Watcher feed algorithm from an ecstatic Tinkerer 15132 | -5/Warlord | Warlord's base attacked by MAIN.C 15173 | -5/Warlord | Identified System Purifier 15206 | -5/Warlord | Found Prototype Piercing Weapon 15212 | -5/Warlord | Found Prototype Piercing Weapon 15213 | -5/Warlord | Found Prototype Launcher 15245 | -5/Warlord | Met Warlord 15362 | -5/Warlord | Warlord forces counterattacked 15395 | -5/Warlord | P-70 Sage assimilated allied Chaingunner 6a 15427 | -5/Warlord | Destroyed 8 combat bots 15492 | -5/Warlord | Spotted Executioner 15507 | -5/Warlord | Discovered new exit (range 14) 15547 | -5/Warlord | Spotted Striker 15548 | -5/Warlord | Spotted Striker 15551 | -5/Warlord | Destroyed Executioner 15575 | -5/Warlord | Destroyed 7 combat bots 15599 | -5/Warlord | Lost 18 allies 15636 | -5/Warlord | Spotted Striker 15699 | -5/Warlord | Lost 11 allies 15807 | -5/Warlord | Warlord base infiltrated, sounded retreat 15865 | -5/Warlord | Spotted Striker 15941 | -5/Warlord | Spotted Striker 15941 | -5/Warlord | Spotted Striker 15943 | -5/Warlord | Spotted Executioner 15988 | -5/Warlord | Lost 7 allies 16001 | -5/Warlord | Identified exit to Proximity Caves 16023 | -5/Warlord | Entered Proximity Caves 16023 | -4/Proximity Caves | Accompanied by 2 allies 16027 | -4/Proximity Caves | Spotter reported a threat 16115 | -4/Proximity Caves | Learned location of Testing (-2) 16344 | -4/Proximity Caves | Discovered exit to Factory (range 6) 16358 | -4/Proximity Caves | Entered Factory 16358 | -4/Factory | Accompanied by 2 allies 16358 | -4/Factory | Evolved 2 slots: Propulsion x1, Utility x1 16359 | -4/Factory | Loaded intel: 66 trap records 16361 | -4/Factory | Loaded intel: 4 garrison access locations 16416 | -4/Factory | Destroyed 9 combat bots 16534 | -4/Factory | Discovered new exit (range 10) 16608 | -4/Factory | First assault squad dispatched 16628 | -4/Factory | Identified exit to Research 16795 | -4/Factory | Identified exit to Upper Caves 17047 | -4/Factory | Destroyed 7 combat bots 17123 | -4/Factory | Entered Upper Caves 17133 | -4/Upper Caves | Encountered a Warlord checkpoint 17138 | -4/Upper Caves | Learned Research garrison access intel 17290 | -4/Upper Caves | Murdered 3 allies 17662 | -4/Upper Caves | Attracted the attention of an 0b10 checkpoint 17684 | -4/Upper Caves | Learned Research trap positions 17765 | -4/Upper Caves | Learned Research security intel 17812 | -4/Upper Caves | Attracted the attention of an 0b10 outpost 17863 | -4/Upper Caves | Destroyed 7 combat bots 18241 | -4/Upper Caves | Discovered new exit (range 10) 18247 | -4/Upper Caves | Identified exit to Upper Caves 18286 | -4/Upper Caves | Entered another Upper Caves area 18286 | -4/Upper Caves | Accompanied by 2 allies 18296 | -4/Upper Caves | Discovered exit to Research (range 6) 18415 | -4/Upper Caves | Learned Research stockpile data 18422 | -4/Upper Caves | Attracted the attention of an 0b10 checkpoint 18743 | -4/Upper Caves | Discovered new exit (range 6) 18781 | -4/Upper Caves | Identified exit to Zhirov 18797 | -4/Upper Caves | Entered Zhirov 18797 | -4/Zhirov | Accompanied by 2 allies 18797 | -4/Zhirov | Discovered new exit (range 3) 18837 | -4/Zhirov | Learned location of Quarantine (-3) 18866 | -4/Zhirov | Found Alien Artifact 18866 | -4/Zhirov | Identified Integrated Reactor 18866 | -4/Zhirov | Installed Integrated Reactor, increased core energy generation (+10) 19039 | -4/Zhirov | Found Alien Artifact 19041 | -4/Zhirov | Identified Vortex Catalyst Activator 19042 | -4/Zhirov | Identified Vortex Lance (x2) 19069 | -4/Zhirov | Identified exit to Proximity Caves 19078 | -4/Zhirov | Cloak Generator disabled 19088 | -4/Zhirov | Enhanced Grunts warped into view 19093 | -4/Zhirov | Entered Proximity Caves 19093 | -3/Proximity Caves | Accompanied by 2 allies 19095 | -3/Proximity Caves | Attracted the attention of an 0b10 checkpoint 19313 | -3/Proximity Caves | Discovered exit to Research (range 8) 19425 | -3/Proximity Caves | Acquired the password to a Derelict Tinkerer's latest research 19428 | -3/Proximity Caves | Found Prototype Special Weapon 19459 | -3/Proximity Caves | Entered Research 19459 | -3/Research | Accompanied by 2 allies 19459 | -3/Research | Evolved 2 slots: Utility x2 19460 | -3/Research | Identified exit to Research 19460 | -3/Research | Identified exit to Quarantine 19461 | -3/Research | Loaded intel: 65 trap records 19464 | -3/Research | Loaded intel: 5 recycling unit locations 19465 | -3/Research | Loaded intel: 3 garrison access locations 19490 | -3/Research | Watched by a mysterious "MATRIX" hacker. 19504 | -3/Research | Identified exit to Armory 19618 | -3/Research | Destroyed 8 combat bots 19766 | -3/Research | Build established: Hacker-Construct 19865 | -3/Research | Entered Quarantine 19871 | -3/Quarantine | Found Alien Artifact 19889 | -3/Quarantine | Found Alien Energy Cannon 19902 | -3/Quarantine | Found Alien Artifact 19907 | -3/Quarantine | Found Alien Artifact 19910 | -3/Quarantine | Found Alien Artifact 19918 | -3/Quarantine | Found Alien Artifact 19920 | -3/Quarantine | Found Alien Artifact 19920 | -3/Quarantine | Identified Dimensional Node Initializer (x2) 19920 | -3/Quarantine | Initialized slip node 19927 | -3/Quarantine | Found Alien Artifact 19927 | -3/Quarantine | Identified Transdimensional Reconstructor (x3) 19927 | -3/Quarantine | Warped through subspace to slip node 19972 | -3/Quarantine | Warped through subspace to slip node 20053 | -3/Quarantine | Lost 3 parts (2p1w) 20055 | -3/Quarantine | Scanned by Researcher 20092 | -3/Quarantine | Found Alien Slashing Weapon 20093 | -3/Quarantine | Identified Sigix Broadsword 20114 | -3/Quarantine | System corruption reached 10% 20116 | -3/Quarantine | Warped through subspace to slip node 20156 | -3/Quarantine | Found Alien Impact Weapon 20179 | -3/Quarantine | Discovered exit to Research (range 3) 20180 | -3/Quarantine | Entered Research 20180 | -2/Research | Warlord forces began assault on 0b10 20180 | -2/Research | Evolved 2 slots: Power x1, Utility x1 20290 | -2/Research | Research machine network offline 20417 | -2/Research | Lost 3 allies 20420 | -2/Research | Borebot progress halted 20436 | -2/Research | Met up with Warlord 20497 | -2/Research | Spotted B-90 Cyclops 20507 | -2/Research | Spotted B-90 Cyclops 20574 | -2/Research | Discovered new exit (range 3) 20575 | -2/Research | Identified exit to Access 20586 | -2/Research | Borebot progress halted 20699 | -2/Research | Borebot progress halted 20821 | -2/Research | Spotted Striker 20832 | -2/Research | Spotted Striker 20928 | -2/Research | Met DD-05H 20992 | -2/Research | Spotted Striker 21025 | -2/Research | Lost 5 allies 21120 | -2/Research | Discovered exit to Access (range 16) 21168 | -2/Research | Discovered new exit (range 5) 21169 | -2/Research | Identified exit to Testing 21204 | -2/Research | Spotted Striker 21222 | -2/Research | Found Adv. Kinecellerator 21240 | -2/Research | Warlord invited to help at Command 21240 | -2/Research | Given Cave Seal Controls access code 21246 | -2/Research | Found Prototype Processor 21246 | -2/Research | Identified Exp. Core Analyzer 21271 | -2/Research | Lost 4 allies 21295 | -2/Research | Spotted Striker 21354 | -2/Research | Entered Testing 21355 | -2/Testing | Identified exit to Section 7 21355 | -2/Testing | Identified exit to Protoforge 21376 | -2/Testing | Found Prototype Launcher 21376 | -2/Testing | Identified Gui. Micro-nuke Launcher 21383 | -2/Testing | Found Prototype Device 21383 | -2/Testing | Identified Thermal Barrier 21438 | -2/Testing | Found Prototype Launcher 21438 | -2/Testing | Identified Adv. Micro-nuke Launcher 21575 | -2/Testing | Lost 5 allies 21636 | -2/Testing | Build established: Scavenger-Construct 21704 | -2/Testing | Identified Core Cannon 21721 | -2/Testing | Unstable Terrabomb Derivative detonated 21859 | -2/Testing | Found Prototype Energy Cannon 21860 | -2/Testing | Identified Potential Cannon 21861 | -2/Testing | Found Prototype Energy Cannon 21873 | -2/Testing | Identified Core Stripper 21878 | -2/Testing | Spotted Fortress 21905 | -2/Testing | Destroyed Fortress 21912 | -2/Testing | Identified Imp. Potential Cannon 21933 | -2/Testing | Found Prototype Device 21934 | -2/Testing | Identified Exp. Force Field 21935 | -2/Testing | Found Prototype Device 21937 | -2/Testing | Identified Exp. EM Shield 21945 | -2/Testing | Found Thermal Barrier 22210 | -2/Testing | Entered Protoforge 22285 | -2/Protoforge | Spotted B-90 Cyclops 22303 | -2/Protoforge | Superfortress began startup sequence 22310 | -2/Protoforge | Destroyed B-90 Cyclops 22353 | -2/Protoforge | Initialized slip node 22381 | -2/Protoforge | Discovered exit to Access (range 4) 22428 | -2/Protoforge | Spotted Hotshot 22469 | -2/Protoforge | Spotted Hotshot 22469 | -2/Protoforge | Spotted Hotshot 22469 | -2/Protoforge | Spotted Hotshot 22469 | -2/Protoforge | Spotted Hotshot 22476 | -2/Protoforge | Found Prototype Ballistic Gun 22478 | -2/Protoforge | Found Prototype Ballistic Gun 22478 | -2/Protoforge | Identified Cep. XC Strikerail (x2) 22485 | -2/Protoforge | Found Cep. XC Strikerail 22491 | -2/Protoforge | Found Prototype Device 22491 | -2/Protoforge | Identified Cep. Weapon Articulator 22501 | -2/Protoforge | Found Prototype Device 22501 | -2/Protoforge | Identified Cep. Recoil Nullifier 22507 | -2/Protoforge | Found Cep. Recoil Nullifier 22516 | -2/Protoforge | Additional patrols dispatched to research labs 22526 | -2/Protoforge | Crushed by falling debris 22559 | -2/Protoforge | Found Prototype Device 22563 | -2/Protoforge | Found Cep. NT7 Matterbank 22566 | -2/Protoforge | Found Cep. NT7 Matterbank 22568 | -2/Protoforge | Found Cep. NT7 Matterbank 22570 | -2/Protoforge | Found Cep. NT7 Matterbank 22621 | -2/Protoforge | Spotted Immortal 22621 | -2/Protoforge | Spotted Immortal 22639 | -2/Protoforge | Destroyed Immortal 22651 | -2/Protoforge | Destroyed Immortal 22702 | -2/Protoforge | Spotted Decapitator 22702 | -2/Protoforge | Spotted Decapitator 22702 | -2/Protoforge | Spotted Decapitator 22702 | -2/Protoforge | Spotted Decapitator 22707 | -2/Protoforge | Destroyed Decapitator 22711 | -2/Protoforge | Destroyed Decapitator 22732 | -2/Protoforge | Destroyed 15 combat bots 22740 | -2/Protoforge | Lost 3 parts (3u) 22960 | -2/Protoforge | First assault squad dispatched 23059 | -2/Protoforge | Found Cep. Antigrav Storage Unit 23062 | -2/Protoforge | Found Prototype Storage 23063 | -2/Protoforge | Identified Cep. Chromion Battery 23067 | -2/Protoforge | Found Cep. Chromion Battery 23071 | -2/Protoforge | Identified Crosscalibrator 23073 | -2/Protoforge | Found Faulty Cep. Matter Streamer 23075 | -2/Protoforge | Found Cep. Antigrav Storage Unit 23077 | -2/Protoforge | Found Cep. Chromion Battery 23080 | -2/Protoforge | Found Faulty Cep. Matter Streamer 23180 | -2/Protoforge | Spotted Immortal 23180 | -2/Protoforge | Spotted Immortal 23180 | -2/Protoforge | Spotted Immortal 23196 | -2/Protoforge | Destroyed Immortal 23211 | -2/Protoforge | Core integrity fell below 50% 23218 | -2/Protoforge | Found Cep. Core Shell 23226 | -2/Protoforge | Destroyed Immortal 23242 | -2/Protoforge | Found Prototype Piercing Weapon 23243 | -2/Protoforge | Found Prototype Device 23244 | -2/Protoforge | Identified Cep. Antimissile System 23255 | -2/Protoforge | Destroyed Immortal 23258 | -2/Protoforge | Found Prototype Device 23259 | -2/Protoforge | Identified Exp. Cloaking Device 23260 | -2/Protoforge | Identified Exp. Jetlance 23273 | -2/Protoforge | Found Prototype Processor 23274 | -2/Protoforge | Identified Exp. Melee Analysis Suite 23276 | -2/Protoforge | Found Exp. Melee Analysis Suite 23277 | -2/Protoforge | System corruption reached 10% 23300 | -2/Protoforge | Spotted V954-c 23300 | -2/Protoforge | Spotted V668-v 23300 | -2/Protoforge | Spotted V784-h 23307 | -2/Protoforge | Lost 4 parts (4u) 23308 | -2/Protoforge | Destroyed 9 combat bots 23310 | -2/Protoforge | Found Faulty Cep. Rapid Grenade Launcher 23313 | -2/Protoforge | Found Prototype Launcher 23314 | -2/Protoforge | Found Prototype Launcher 23315 | -2/Protoforge | Identified Cep. Arcsight Missile Launcher (x2) 23364 | -2/Protoforge | Spotted Decapitator 23364 | -2/Protoforge | Spotted V247-b 23364 | -2/Protoforge | Spotted V269-u 23370 | -2/Protoforge | Destroyed Decapitator 23382 | -2/Protoforge | Destroyed V269-u 23389 | -2/Protoforge | Destroyed V247-b 23417 | -2/Protoforge | Found Exp. Jetlance 23419 | -2/Protoforge | Found Prototype Energy Gun 23419 | -2/Protoforge | Identified Cep. Lightning Penetrator 23423 | -2/Protoforge | Found Prototype Ballistic Gun 23423 | -2/Protoforge | Identified Cep. XC Strikerail 23425 | -2/Protoforge | Found Prototype Energy Gun 23425 | -2/Protoforge | Identified Cep. Disintegration Ray 23427 | -2/Protoforge | Found Cep. Plasma Driver 23436 | -2/Protoforge | Found Cep. Deflector Sword 23440 | -2/Protoforge | Found Cep. Helical Railcannon 23446 | -2/Protoforge | Found Cep. Plasma Driver 23447 | -2/Protoforge | Found Cep. Plasma Driver 23470 | -2/Protoforge | Found Faulty Cep. Heavy Railcannon 23484 | -2/Protoforge | Incoming assault squad redirected 23485 | -2/Protoforge | Spotted Hotshot 23490 | -2/Protoforge | Destroyed Hotshot 23492 | -2/Protoforge | Spotted Hotshot 23492 | -2/Protoforge | Spotted Hotshot 23493 | -2/Protoforge | Spotted Hotshot 23498 | -2/Protoforge | Destroyed Hotshot 23499 | -2/Protoforge | Destroyed Hotshot 23500 | -2/Protoforge | Destroyed Hotshot 23543 | -2/Protoforge | Forge Plexus network access discovered 23573 | -2/Protoforge | Found Exp. Jetlance 23641 | -2/Protoforge | Found Cep. Beam Splitter 23642 | -2/Protoforge | Found Exp. Remote Shield 23650 | -2/Protoforge | Found Cep. Core Shell 23657 | -2/Protoforge | Found Cep. Core Shell 23659 | -2/Protoforge | Found Cep. Phase Shift Module 23670 | -2/Protoforge | Found Cep. Core Shell 23672 | -2/Protoforge | Found Cep. Beam Splitter 23681 | -2/Protoforge | Spotted AP7-3 23681 | -2/Protoforge | Spotted AP7-3 23692 | -2/Protoforge | Build established: Scavenger-Gladiator 23699 | -2/Protoforge | Destroyed AP7-3 23730 | -2/Protoforge | Destroyed AP7-3 23752 | -2/Protoforge | Found Cep. Core Analysis Suite 23757 | -2/Protoforge | Found Faulty Cep. Cloak Mesh 23759 | -2/Protoforge | Found Faulty Cep. Cloak Mesh 23989 | -2/Protoforge | Found Faulty Cep. Impact Drone Bay 23992 | -2/Protoforge | Found Faulty Cep. Thermoelectric Network 24059 | -2/Protoforge | Spotted V543-s 24059 | -2/Protoforge | Spotted V640-j 24063 | -2/Protoforge | Spotted Immortal 24064 | -2/Protoforge | Spotted Immortal 24067 | -2/Protoforge | Build established: Gladiator 24086 | -2/Protoforge | Destroyed Immortal 24090 | -2/Protoforge | Destroyed Immortal 24092 | -2/Protoforge | Found Exp. Jetlance 24102 | -2/Protoforge | Spotted V170-y 24161 | -2/Protoforge | Destroyed V543-s 24170 | -2/Protoforge | Destroyed V170-y 24187 | -2/Protoforge | Found Exp. Jetlance 24308 | -2/Protoforge | Found Cep. Projectile Intercept Suite 24317 | -2/Protoforge | System corruption reached 30% 24355 | -2/Protoforge | Found Cep. Nanofilaments [Endoweave] 24355 | -2/Protoforge | Installed Cep. Nanofilaments [Endoweave], 5 resistances modified: KI +10%, TH +10%, EX -50%, S -20%, P +20% 24370 | -2/Protoforge | Found Cep. Navigation Harness 24374 | -2/Protoforge | Found Transdimensional Reconstructor 24427 | -2/Protoforge | Spotted Decapitator 24438 | -2/Protoforge | Spotted V810-p 24438 | -2/Protoforge | Spotted V555-b 24450 | -2/Protoforge | Spotted V623-w 24475 | -2/Protoforge | Destroyed V623-w 24483 | -2/Protoforge | Destroyed V810-p 24501 | -2/Protoforge | Core integrity fell below 20% 24530 | -2/Protoforge | Lost 4 parts (4u) 24564 | -2/Protoforge | Found Cep. Networked Targeting System 24567 | -2/Protoforge | Found Exp. Kinecellerator 24568 | -2/Protoforge | Found Cep. Countertargeting System 24571 | -2/Protoforge | Found Faulty Femtoactuators 24574 | -2/Protoforge | Found Faulty Exp. Force Booster 24586 | -2/Protoforge | Found Mni. Quantum Capacitor 24592 | -2/Protoforge | Found Prototype Device 24592 | -2/Protoforge | Identified Cep. Hypertargeting System 24597 | -2/Protoforge | Found Mni. Quantum Capacitor 24666 | -2/Protoforge | Destroyed 9 combat bots 24669 | -2/Protoforge | Spotted Decapitator 24733 | -2/Protoforge | Incoming assault squad redirected 24737 | -2/Protoforge | Found Faulty Cep. Helical Railcannon 24739 | -2/Protoforge | Found Faulty Cep. Helical Railcannon 24741 | -2/Protoforge | Found Cep. Variable Chargecaster 24745 | -2/Protoforge | Found Faulty Cep. Lightning Penetrator 24765 | -2/Protoforge | Build established: Construct 24938 | -2/Protoforge | Found Faulty Cep. Fieldthrust Drive 24942 | -2/Protoforge | Found Cep. Gyrokinetic System 24976 | -2/Protoforge | Incoming assault squad redirected 24995 | -2/Protoforge | Spotted V141-b 25023 | -2/Protoforge | Destroyed V141-b 25118 | -2/Protoforge | Found Cep. Core Shell 25122 | -2/Protoforge | Found Cep. Core Shell 25125 | -2/Protoforge | Found Cep. Core Shell 25132 | -2/Protoforge | Warped through subspace to slip node 25151 | -2/Protoforge | Spotted Hotshot 25166 | -2/Protoforge | Spotted Hotshot 25166 | -2/Protoforge | Entered Access 25166 | -1/Access | Evolved 2 slots: Utility x1, Weapon x1 25227 | -1/Access | Identified Hpw. Transdimensional Reconstructor (x2) 25259 | -1/Access | Spotted B-99 Colossus 25283 | -1/Access | Found Unknown Device 25284 | -1/Access | Identified Quantum Capacitor 25372 | -1/Access | Fabricated K-01 Serf? 25416 | -1/Access | First assault squad dispatched 25434 | -1/Access | Found Fusion Bomb Launcher 25472 | -1/Access | Garrison activated, responded to threat 25477 | -1/Access | High security lockdown imminent 25480 | -1/Access | Lost 4 allies 25519 | -1/Access | Lost 7 parts (1p5u1w) 25557 | -1/Access | High security lockdown engaged 25650 | -1/Access | Discovered new exit (range 7) 25652 | -1/Access | Identified exit to Command 25655 | -1/Access | Entered Command 25671 | -1/Command | Phase Generator disabled 25787 | -1/Command | Build established: Infiltrator-Mutant 25862 | -1/Command | High security lockdown imminent 25867 | -1/Command | Spotted B-99 Colossus 25908 | -1/Command | Disengaged cave seal 25912 | -1/Command | Welcomed Warlord to Command 25942 | -1/Command | High security lockdown engaged 25964 | -1/Command | Lost 6 allies 26017 | -1/Command | Spotted M Guard 26022 | -1/Command | Spotted Combat Programmer 26026 | -1/Command | Spotted M Guard 26027 | -1/Command | Warlord commented on Warlord statues 26027 | -1/Command | Combat Programmer assimilated allied ZI-CRR(g) 26028 | -1/Command | Spotted Combat Programmer 26028 | -1/Command | Spotted ZI-CRR(g) 26035 | -1/Command | Destroyed ZI-CRR(g) 26039 | -1/Command | System corruption reached 10% 26087 | -1/Command | Core integrity fell below 50% 26100 | -1/Command | Destroyed M Guard 26100 | -1/Command | All MAIN.C guards destroyed 26103 | -1/Command | Lost 7 parts (1p3u3w) 26107 | -1/Command | Found Prototype Energy Cannon 26108 | -1/Command | Identified Cld. Nova Cannon 26117 | -1/Command | Found Prototype Device 26118 | -1/Command | Identified AEGIS Remote Shield 26160 | -1/Command | Met MAIN.C 26165 | -1/Command | 0b10 Conduit disabled 26211 | -1/Command | MAIN.C activated Command garrisons 26223 | -1/Command | Discovered new exit (range 12) 26233 | -1/Command | Spotted B-99 Colossus 26258 | -1/Command | Warped through subspace to slip node 26258 | -1/Command | Discovered new exit (range 5) 26259 | -1/Command | Core integrity fell below 20% 26274 | -1/Command | Entered Access_0 26275 | -1/Access_0 | Met Architect 26325 | -1/Access_0 | A6 warped into view 26352 | -1/Access_0 | Subspace Access Node disabled 26364 | -1/Access_0 | Found Prototype Launcher 26370 | -1/Access_0 | Identified Com. Tesla Bomb Launcher 26393 | -1/Access_0 | Warped through subspace to slip node 26393 | -1/Access_0 | Discovered new exit (range 8) 26396 | *** | Escaped! Last Messages --------------- 26368_ Acquired Prototype Energy Cannon. 26369_ Identified Hvy. Neutron Cannon. 26370_ Identified Com. Tesla Bomb Launcher. 26372_ Graviton Cannon severed. 26372_ Quantum Shear penetrates Reinforced Shell. 26372_ Acquired Graviton Cannon. 26374_ Quantum Shear penetrates A6. 26387_ System corrupted: FCS attempts to trigger Core Cannon. 26388_ Penetrated by Quantum Shear. 26389_ A2: "Someone looks like they took a wrong turn." 26389_ Critical hit (Burn: +37). 26390_ Beam penetrates A2. 26390_ Penetrated by Quantum Shear. 26392_ Beam penetrates Wall. 26393_ A6 follow-up attacks with Unknown Piercing Weapon. 26393_ Warped through subspace, drawn to slip node. 26393_ EXIT=FOUND 26393_ A0_RES: I have more important things to do than play hide-and-seek. Deal with this piece of junk if it returns. [Achievement: Victory By Combat] Map ----- +----------------------------------------------------+ | | | | | | | | | | | | | | | | | | | | | | | | | | | | | | | | | ?????????????????????????????????????????????????? | | ?????????????????????????????????????????????????? | | ?????????????????????????????????????????????????? | | ?????????????????????????????????????????????????? | | ?????????????????????????????????????????????????? | | ?????????????????????????????????????????????????? | | ????????????????????????###??????????????????????? | | ???????????????????????## ##?????????????????????? | | ???????????????????????# #?????????????????????? | | ???????????????????????# @ #?????????????????????? | | ??????????????????????## #?????????????????????? | | ??????????????????????# #?????????????????????? | | ??????????????????????# ##?????????????????????? | | ??????????????????????## #?????????????????????? | | ??????????????????????# #?????????????????????? | | ??????????????????????# ##?????????????????????? | | ??????????????????????# < #?????????????????????? | | ??????????????????????# ##?????????????????????? | | ??????????????????????## #??????????????????????? | | ???????????????????????####??????????????????????? | | ?????????????????????????????????????????????????? | | ?????????????????????????????????????????????????? | | ?????????????????????????????????????????????????? | | ?????????????????????????????????????????????????? | | ?????????????????????????????????????????????????? | | ?????????????????????????????????????????????????? | | ?????????????????????????????????????????????????? | | ?????????????????????????????????????????????????? | | ?????????????????????????????????????????????????? | | ?????????????????????????????????????????????????? | | ?????????????????????????????????????????????????? | | ?????????????????????????????????????????????????? | | ?????????????????????????????????????????????????? | | ?????????????????????????????????????????????????? | +----------------------------------------------------+ Best States ------------- Heat Dissipation 162 Coolant Potential 120 Energy Generation 111 Energy Capacity 3482 Matter Stores 300 Matter Capacity 300 Sight Range 23 Robot Scan Range 19 Terrain Scan Density 10 ECM Strength 2 Jamming Range 16 Cloak Strength 6 EM Shielding 4 Corruption Containment 12 Armor Coverage 800 Resistance: KI 40 Resistance: TH 85 Resistance: EM 75 Resistance: P 20 Core Shielding 90 Power Shielding 90 Point Defense Rating 480 Projectile Deflection 15 Weapon Cycling 25 Melee Speed Boost 30 Phase Shifting 25 Evasion (%) 95 Targeting Accuracy 30 Melee Accuracy 24 Core Analysis 11 Recoil Reduction 6 Particle Charging 25 Kinecelleration 66 Offensive Hacking 14 Defensive Hacking 24 Authchip Count 1 Item Schematics ----------------- Gravmag Array | -8/Storage | Hacked Cld. Gravmag System | -6/Data Miner | Free Lgt. Regenerative Plating | -6/Data Miner | Free Combat Drone Bay | -6/Data Miner | Free Exp. Heat Sink | -6/Data Miner | Free Ionic Axe | -6/Data Miner | Free Imp. Antigrav System | -6/Data Miner | Free Adv. Reaction Control System | -6/Data Miner | Free Hyp. Mass Driver | -6/Data Miner | Free Imp. Recalibrator | -6/Data Miner | Free Phase Gun | -6/Data Miner | Free Gamma Bomb Array | -6/Data Miner | Free Mic. Antimatter Reactor | -6/Data Miner | Free Adv. Kinecellerator | -5/Factory | Scanalyzed Assault Drone Bay | -4/Zhirov | Free Exp. Optical Array | -4/Zhirov | Free Imp. Arc Thrower | -4/Zhirov | Free Adv. Gravity Neutralizer | -2/Testing | Archive Com. Mass Driver | -2/Testing | Archive Exp. Thermal Defense Suite | -2/Testing | Archive Exp. Coolant Injector | -2/Testing | Archive Adv. Micro-nuke Launcher | -2/Testing | Archive Imp. Q-thruster | -2/Testing | Archive Mni. Smartbomb Launcher | -2/Testing | Archive Exp. Gyrokinetic Inverter | -2/Protoforge | Archive Exp. Power Amplifier | -2/Protoforge | Archive Exp. Myomer Leg | -2/Protoforge | Archive Enh. Armored Heavy Treads | -2/Protoforge | Archive Exp. Matter Compressor | -2/Protoforge | Archive Prc. Phase Gun | -2/Protoforge | Archive Exp. Target Analyzer | -2/Protoforge | Archive Exp. Core Analyzer | -2/Protoforge | Archive Tactical Quantum Warhead | -2/Protoforge | Archive Electron Diverter | -2/Protoforge | Archive Hvy. Gatling Laser | -2/Protoforge | Archive Lrn. Phase Cannon | -2/Protoforge | Archive Plasma Sword | -2/Protoforge | Archive Exp. Field Recycling Unit | -2/Protoforge | Archive Hvy. Dispersion Rifle | -2/Protoforge | Archive Imp. Quantum Reactor | -2/Protoforge | Archive Robot Schematics ------------------ O-24 Administrator | -6/Factory | Hacked E-15 Imp | -6/Factory | Hacked A-15 Conveyor | -6/Data Miner | Free B-60 Warrior | -6/Data Miner | Free G-50 Soldier | -6/Data Miner | Free A-27 Freighter | -6/Data Miner | Free H-77 Assassin | -6/Data Miner | Free O-32 Director | -6/Data Miner | Free X-82 Rainmaker | -3/Quarantine | Archive B-74 Champion | -2/Protoforge | Archive X-87 Electro | -2/Protoforge | Archive G-73 Enforcer | -2/Protoforge | Archive K-01 Serf | -2/Protoforge | Archive Fabricated ------------ Hyp. Mass Driver | x2 | -5/Factory Lgt. Particle Reactor | x2 | -5/Factory | Preloaded K-01 Serf | x4 | -1/Access | Preloaded Repaired ---------- Nothing Studied --------- Com. Wheel | -8/Materials | Hacked Lrn. Missile Launcher | -5/Factory | Hacked Alien Tech Used ----------------- Core Expander Integrated Reactor Dimensional Node Initializer Transdimensional Reconstructor Sigix Broadsword Core Cannon Core Stripper Concept Nanofilaments [Endoweave] High-powered Transdimensional Reconstructor Achievements -------------- I'm Outta Here, Maybe Not Immortal After All Victory By Combat Challenges ------------ None Game ------ Seed MakeshiftActuatorPick Manual? 0 Play Time 05:25:10 Cumulative 792.5 hours Start 2026.04.21 @ 04:21:57 End 2026.04.22 @ 14:17:38 Sessions 6 Manual Loads 0 Difficulty Rogue Special Mode None Game No. 969 Rogue 969 Adventurer 0 Explorer 0 Win Type 0 Total 31 Types 16/1/4/3/2/0/2/2/1/0 Lore% 97 Gallery% 95 Achievement% 87 Wizard Run 0 Options --------- Layout 0 ASCII 0 Keyboard 0 Movement Mouse Keybinds 0 Fullscreen 1 Font 24/Terminus Map View 76x50 Zoom Use 0% Tactical HUD 1 Map Filters NONE Filters NONE Steam 1 RUN: 22d9973d-b0d6-4961-afc4-ca71db31cf1b